Workbook

Sheet Main
F2: CQG iShares Core S&P U.S. Growth ETF Performance | AB2: =RTD("cqg.rtd", ,"SystemInfo", "Linetime") -> 42863.39572
B5: Exchange Traded Funds Performance | S5: Top 15 Performing Companies
B6: Symbol | C6: Description | H6: Last | I6: NC | J6: %NC | K6: NC/ATR | L6: Open | M6: High | N6: Low | O6: Volume | Q6: Ratio
B7: IUSG | C7: =RTD("cqg.rtd", ,"ContractData",B7, "LongDescription",, "T") -> iShares Core U.S. Growth ETF | H7: =RTD("cqg.rtd", ,"ContractData",B7, "LastTradeToday",, "T") -> 47.58 | I7: =RTD("cqg.rtd", ,"ContractData",B7, "NetLastTradeToday",, "T") -> -0.05 | J7: =RTD("cqg.rtd", ,"ContractData",B7, "PerCentNetLastTrade",, "T")/100 -> -0.001049758556 | K7: =I7/RTD("cqg.rtd",,"StudyData",B7, "ATR", "MaType=Sim,Period=10", "ATR","D","-1","ALL",,,"FALSE","T")/100 -> -0.002 | L7: =RTD("cqg.rtd", ,"ContractData",B7, "OPen",, "T") -> 47.7 | M7: =RTD("cqg.rtd", ,"ContractData", B7, "HIgh",, "T") -> 47.7 | N7: =RTD("cqg.rtd", ,"ContractData",B7, "LOw",, "T") -> 47.58 | O7: =RTD("cqg.rtd", ,"ContractData",B7, "T_CVol",, "T") -> 27412 | Q7: =IFERROR(O7/RTD("cqg.rtd",,"StudyData",B7, "MA", "InputChoice=Vol,MAType=Sim,Period=21", "MA","D","-1","all",,,,"T"),"") -> 0.03743307962
B8: SPY | C8: =RTD("cqg.rtd", ,"ContractData",B8, "LongDescription",, "T") -> SPDR S&P 500 | H8: =RTD("cqg.rtd", ,"ContractData",B8, "LastTradeToday",, "T") -> 239.45 | I8: =RTD("cqg.rtd", ,"ContractData",B8, "NetLastTradeToday",, "T") -> -0.25 | J8: =RTD("cqg.rtd", ,"ContractData",B8, "PerCentNetLastTrade",, "T")/100 -> -0.00104297038 | K8: =I8/RTD("cqg.rtd",,"StudyData",B8, "ATR", "MaType=Sim,Period=10", "ATR","D","-1","ALL",,,"FALSE","T")/100 -> -0.001930501931 | L8: =RTD("cqg.rtd", ,"ContractData",B8, "OPen",, "T") -> 239.75 | M8: =RTD("cqg.rtd", ,"ContractData", B8, "HIgh",, "T") -> 239.92 | N8: =RTD("cqg.rtd", ,"ContractData",B8, "LOw",, "T") -> 239.39 | O8: =RTD("cqg.rtd", ,"ContractData",B8, "T_CVol",, "T") -> 8140309 | Q8: =IFERROR(O8/RTD("cqg.rtd",,"StudyData",B8, "MA", "InputChoice=Vol,MAType=Sim,Period=21", "MA","D","-1","all",,,,"T"),"") -> 0.1056595097
B9: XLF | C9: =RTD("cqg.rtd", ,"ContractData",B9, "LongDescription",, "T") -> Financial Select Sector SPDR | H9: =RTD("cqg.rtd", ,"ContractData",B9, "LastTradeToday",, "T") -> 23.84 | I9: =RTD("cqg.rtd", ,"ContractData",B9, "NetLastTradeToday",, "T") -> 0 | J9: =RTD("cqg.rtd", ,"ContractData",B9, "PerCentNetLastTrade",, "T")/100 -> 0 | K9: =I9/RTD("cqg.rtd",,"StudyData",B9, "ATR", "MaType=Sim,Period=10", "ATR","D","-1","ALL",,,"FALSE","T")/100 -> 0 | L9: =RTD("cqg.rtd", ,"ContractData",B9, "OPen",, "T") -> 23.87 | M9: =RTD("cqg.rtd", ,"ContractData", B9, "HIgh",, "T") -> 23.91 | N9: =RTD("cqg.rtd", ,"ContractData",B9, "LOw",, "T") -> 23.8 | O9: =RTD("cqg.rtd", ,"ContractData",B9, "T_CVol",, "T") -> 11758488 | Q9: =IFERROR(O9/RTD("cqg.rtd",,"StudyData",B9, "MA", "InputChoice=Vol,MAType=Sim,Period=21", "MA","D","-1","all",,,,"T"),"") -> 0.1555235123
B10: GDX | C10: =RTD("cqg.rtd", ,"ContractData",B10, "LongDescription",, "T") -> Market Vectors Gold Miners ETF | H10: =RTD("cqg.rtd", ,"ContractData",B10, "LastTradeToday",, "T") -> 21.41 | I10: =RTD("cqg.rtd", ,"ContractData",B10, "NetLastTradeToday",, "T") -> -0.14 | J10: =RTD("cqg.rtd", ,"ContractData",B10, "PerCentNetLastTrade",, "T")/100 -> -0.006496519722 | K10: =I10/RTD("cqg.rtd",,"StudyData",B10, "ATR", "MaType=Sim,Period=10", "ATR","D","-1","ALL",,,"FALSE","T")/100 -> -0.002037845706 | L10: =RTD("cqg.rtd", ,"ContractData",B10, "OPen",, "T") -> 21.58 | M10: =RTD("cqg.rtd", ,"ContractData", B10, "HIgh",, "T") -> 21.59 | N10: =RTD("cqg.rtd", ,"ContractData",B10, "LOw",, "T") -> 21.36 | O10: =RTD("cqg.rtd", ,"ContractData",B10, "T_CVol",, "T") -> 5967400 | Q10: =IFERROR(O10/RTD("cqg.rtd",,"StudyData",B10, "MA", "InputChoice=Vol,MAType=Sim,Period=21", "MA","D","-1","all",,,,"T"),"") -> 0.09093655007
B11: FXI | C11: =RTD("cqg.rtd", ,"ContractData",B11, "LongDescription",, "T") -> iShares China Large-Cap ETF | H11: =RTD("cqg.rtd", ,"ContractData",B11, "LastTradeToday",, "T") -> 37.78 | I11: =RTD("cqg.rtd", ,"ContractData",B11, "NetLastTradeToday",, "T") -> 0.01 | J11: =RTD("cqg.rtd", ,"ContractData",B11, "PerCentNetLastTrade",, "T")/100 -> 0.0002647603918 | K11: =I11/RTD("cqg.rtd",,"StudyData",B11, "ATR", "MaType=Sim,Period=10", "ATR","D","-1","ALL",,,"FALSE","T")/100 -> 0.0003076923077 | L11: =RTD("cqg.rtd", ,"ContractData",B11, "OPen",, "T") -> 37.78 | M11: =RTD("cqg.rtd", ,"ContractData", B11, "HIgh",, "T") -> 37.84 | N11: =RTD("cqg.rtd", ,"ContractData",B11, "LOw",, "T") -> 37.73 | O11: =RTD("cqg.rtd", ,"ContractData",B11, "T_CVol",, "T") -> 3356454 | Q11: =IFERROR(O11/RTD("cqg.rtd",,"StudyData",B11, "MA", "InputChoice=Vol,MAType=Sim,Period=21", "MA","D","-1","all",,,,"T"),"") -> 0.2344004475
B12: IWM | C12: =RTD("cqg.rtd", ,"ContractData",B12, "LongDescription",, "T") -> iShares Russell 2000 ETF | H12: =RTD("cqg.rtd", ,"ContractData",B12, "LastTradeToday",, "T") -> 138.35 | I12: =RTD("cqg.rtd", ,"ContractData",B12, "NetLastTradeToday",, "T") -> -0.66 | J12: =RTD("cqg.rtd", ,"ContractData",B12, "PerCentNetLastTrade",, "T")/100 -> -0.004747859866 | K12: =I12/RTD("cqg.rtd",,"StudyData",B12, "ATR", "MaType=Sim,Period=10", "ATR","D","-1","ALL",,,"FALSE","T")/100 -> -0.00390070922 | L12: =RTD("cqg.rtd", ,"ContractData",B12, "OPen",, "T") -> 138.66 | M12: =RTD("cqg.rtd", ,"ContractData", B12, "HIgh",, "T") -> 138.98 | N12: =RTD("cqg.rtd", ,"ContractData",B12, "LOw",, "T") -> 138.24 | O12: =RTD("cqg.rtd", ,"ContractData",B12, "T_CVol",, "T") -> 3156698 | Q12: =IFERROR(O12/RTD("cqg.rtd",,"StudyData",B12, "MA", "InputChoice=Vol,MAType=Sim,Period=21", "MA","D","-1","all",,,,"T"),"") -> 0.1117493665
B13: IWO | C13: =RTD("cqg.rtd", ,"ContractData",B13, "LongDescription",, "T") -> iShares Russell 2000 Growth ETF | H13: =RTD("cqg.rtd", ,"ContractData",B13, "LastTradeToday",, "T") -> 164.04 | I13: =RTD("cqg.rtd", ,"ContractData",B13, "NetLastTradeToday",, "T") -> -0.98 | J13: =RTD("cqg.rtd", ,"ContractData",B13, "PerCentNetLastTrade",, "T")/100 -> -0.0059386741 | K13: =I13/RTD("cqg.rtd",,"StudyData",B13, "ATR", "MaType=Sim,Period=10", "ATR","D","-1","ALL",,,"FALSE","T")/100 -> -0.005215540181 | L13: =RTD("cqg.rtd", ,"ContractData",B13, "OPen",, "T") -> 164.62 | M13: =RTD("cqg.rtd", ,"ContractData", B13, "HIgh",, "T") -> 164.78 | N13: =RTD("cqg.rtd", ,"ContractData",B13, "LOw",, "T") -> 163.95 | O13: =RTD("cqg.rtd", ,"ContractData",B13, "T_CVol",, "T") -> 30979 | Q13: =IFERROR(O13/RTD("cqg.rtd",,"StudyData",B13, "MA", "InputChoice=Vol,MAType=Sim,Period=21", "MA","D","-1","all",,,,"T"),"") -> 0.06174036814
B14: QQQ | C14: =RTD("cqg.rtd", ,"ContractData",B14, "LongDescription",, "T") -> Powershares QQQ Trust | H14: =RTD("cqg.rtd", ,"ContractData",B14, "LastTradeToday",, "T") -> 137.5 | I14: =RTD("cqg.rtd", ,"ContractData",B14, "NetLastTradeToday",, "T") -> -0.04 | J14: =RTD("cqg.rtd", ,"ContractData",B14, "PerCentNetLastTrade",, "T")/100 -> -0.0002908244874 | K14: =I14/RTD("cqg.rtd",,"StudyData",B14, "ATR", "MaType=Sim,Period=10", "ATR","D","-1","ALL",,,"FALSE","T")/100 -> -0.0004032258065 | L14: =RTD("cqg.rtd", ,"ContractData",B14, "OPen",, "T") -> 137.61 | M14: =RTD("cqg.rtd", ,"ContractData", B14, "HIgh",, "T") -> 137.73 | N14: =RTD("cqg.rtd", ,"ContractData",B14, "LOw",, "T") -> 137.4 | O14: =RTD("cqg.rtd", ,"ContractData",B14, "T_CVol",, "T") -> 2658283 | Q14: =IFERROR(O14/RTD("cqg.rtd",,"StudyData",B14, "MA", "InputChoice=Vol,MAType=Sim,Period=21", "MA","D","-1","all",,,,"T"),"") -> 0.1328870632
B15: XLE | C15: =RTD("cqg.rtd", ,"ContractData",B15, "LongDescription",, "T") -> Energy Select Sector SPDR | H15: =RTD("cqg.rtd", ,"ContractData",B15, "LastTradeToday",, "T") -> 67.63 | I15: =RTD("cqg.rtd", ,"ContractData",B15, "NetLastTradeToday",, "T") -> 0.32 | J15: =RTD("cqg.rtd", ,"ContractData",B15, "PerCentNetLastTrade",, "T")/100 -> 0.004754122716 | K15: =I15/RTD("cqg.rtd",,"StudyData",B15, "ATR", "MaType=Sim,Period=10", "ATR","D","-1","ALL",,,"FALSE","T")/100 -> 0.003245436105 | L15: =RTD("cqg.rtd", ,"ContractData",B15, "OPen",, "T") -> 67.3 | M15: =RTD("cqg.rtd", ,"ContractData", B15, "HIgh",, "T") -> 67.8 | N15: =RTD("cqg.rtd", ,"ContractData",B15, "LOw",, "T") -> 67.29 | O15: =RTD("cqg.rtd", ,"ContractData",B15, "T_CVol",, "T") -> 2947163 | Q15: =IFERROR(O15/RTD("cqg.rtd",,"StudyData",B15, "MA", "InputChoice=Vol,MAType=Sim,Period=21", "MA","D","-1","all",,,,"T"),"") -> 0.1881925997
B16: USO | C16: =RTD("cqg.rtd", ,"ContractData",B16, "LongDescription",, "T") -> United States Oil Fund | H16: =RTD("cqg.rtd", ,"ContractData",B16, "LastTradeToday",, "T") -> 9.69 | I16: =RTD("cqg.rtd", ,"ContractData",B16, "NetLastTradeToday",, "T") -> 0.03 | J16: =RTD("cqg.rtd", ,"ContractData",B16, "PerCentNetLastTrade",, "T")/100 -> 0.003105590062 | K16: =I16/RTD("cqg.rtd",,"StudyData",B16, "ATR", "MaType=Sim,Period=10", "ATR","D","-1","ALL",,,"FALSE","T")/100 -> 0.001293103448 | L16: =RTD("cqg.rtd", ,"ContractData",B16, "OPen",, "T") -> 9.58 | M16: =RTD("cqg.rtd", ,"ContractData", B16, "HIgh",, "T") -> 9.72 | N16: =RTD("cqg.rtd", ,"ContractData",B16, "LOw",, "T") -> 9.56 | O16: =RTD("cqg.rtd", ,"ContractData",B16, "T_CVol",, "T") -> 6150092 | Q16: =IFERROR(O16/RTD("cqg.rtd",,"StudyData",B16, "MA", "InputChoice=Vol,MAType=Sim,Period=21", "MA","D","-1","all",,,,"T"),"") -> 0.2119402168
C17: Top 15 Description | H17: Last | I17: NC | J17: %NC | K17: NC/ATR | L17: Open | M17: High | N17: Low | O17: Volume | Q17: Ratio
A18: =TRIM(IUSG!I1) -> S.US.NWL | B18: News | C18: =RTD("cqg.rtd", ,"ContractData",A18, "LongDescription",, "T")&" ("&RIGHT(A18,LEN(A18)-5)&")" -> Newell Brands Inc. (NWL) | H18: =RTD("cqg.rtd", ,"ContractData",A18, "LastTradeToday",, "T") -> 52.72 | I18: =RTD("cqg.rtd", ,"ContractData",A18, "NetLastTradeToday",, "T") -> 6.33 | J18: =RTD("cqg.rtd", ,"ContractData",A18, "PerCentNetLastTrade",, "T")/100 -> 0.1364518215 | K18: =I18/RTD("cqg.rtd",,"StudyData",A18, "ATR", "MaType=Sim,Period=10", "ATR","D","-1","ALL",,,"FALSE","T")/100 -> 0.06762820513 | L18: =RTD("cqg.rtd", ,"ContractData",A18, "OPen",, "T") -> 51.2 | M18: =RTD("cqg.rtd", ,"ContractData", A18, "HIgh",, "T") -> 52.87 | N18: =RTD("cqg.rtd", ,"ContractData",A18, "LOw",, "T") -> 50.85 | O18: =RTD("cqg.rtd", ,"ContractData",A18, "T_CVol",, "T") -> 5099670 | Q18: =IFERROR(O18/RTD("cqg.rtd",,"StudyData",A18, "MA", "InputChoice=Vol,MAType=Sim,Period=21", "MA","D","-1","all",,,,"T"),"") ->  | R18: =IUSG!Q1 -> https://finance.yahoo.com/quote/NWL
A19: =TRIM(IUSG!I2) -> S.US.KATE | B19: News | C19: =RTD("cqg.rtd", ,"ContractData",A19, "LongDescription",, "T")&" ("&RIGHT(A19,LEN(A19)-5)&")" -> Kate Spade Company (KATE) | H19: =RTD("cqg.rtd", ,"ContractData",A19, "LastTradeToday",, "T") -> 18.36 | I19: =RTD("cqg.rtd", ,"ContractData",A19, "NetLastTradeToday",, "T") -> 1.39 | J19: =RTD("cqg.rtd", ,"ContractData",A19, "PerCentNetLastTrade",, "T")/100 -> 0.08190925162 | K19: =I19/RTD("cqg.rtd",,"StudyData",A19, "ATR", "MaType=Sim,Period=10", "ATR","D","-1","ALL",,,"FALSE","T")/100 -> 0.02602996255 | L19: =RTD("cqg.rtd", ,"ContractData",A19, "OPen",, "T") -> 18.39 | M19: =RTD("cqg.rtd", ,"ContractData", A19, "HIgh",, "T") -> 18.39 | N19: =RTD("cqg.rtd", ,"ContractData",A19, "LOw",, "T") -> 18.34 | O19: =RTD("cqg.rtd", ,"ContractData",A19, "T_CVol",, "T") -> 25910688 | Q19: =IFERROR(O19/RTD("cqg.rtd",,"StudyData",A19, "MA", "InputChoice=Vol,MAType=Sim,Period=21", "MA","D","-1","all",,,,"T"),"") ->  | R19: =IUSG!Q2 -> https://finance.yahoo.com/quote/KATE
A20: =TRIM(IUSG!I3) -> S.US.COH | B20: News | C20: =RTD("cqg.rtd", ,"ContractData",A20, "LongDescription",, "T")&" ("&RIGHT(A20,LEN(A20)-5)&")" -> COACH INC (COH) | H20: =RTD("cqg.rtd", ,"ContractData",A20, "LastTradeToday",, "T") -> 45.17 | I20: =RTD("cqg.rtd", ,"ContractData",A20, "NetLastTradeToday",, "T") -> 2.51 | J20: =RTD("cqg.rtd", ,"ContractData",A20, "PerCentNetLastTrade",, "T")/100 -> 0.05883731833 | K20: =I20/RTD("cqg.rtd",,"StudyData",A20, "ATR", "MaType=Sim,Period=10", "ATR","D","-1","ALL",,,"FALSE","T")/100 -> 0.02225177305 | L20: =RTD("cqg.rtd", ,"ContractData",A20, "OPen",, "T") -> 45.61 | M20: =RTD("cqg.rtd", ,"ContractData", A20, "HIgh",, "T") -> 46.56 | N20: =RTD("cqg.rtd", ,"ContractData",A20, "LOw",, "T") -> 45 | O20: =RTD("cqg.rtd", ,"ContractData",A20, "T_CVol",, "T") -> 4989030 | Q20: =IFERROR(O20/RTD("cqg.rtd",,"StudyData",A20, "MA", "InputChoice=Vol,MAType=Sim,Period=21", "MA","D","-1","all",,,,"T"),"") ->  | R20: =IUSG!Q3 -> https://finance.yahoo.com/quote/COH
A21: =TRIM(IUSG!I4) -> S.US.VAR | B21: News | C21: =RTD("cqg.rtd", ,"ContractData",A21, "LongDescription",, "T")&" ("&RIGHT(A21,LEN(A21)-5)&")" -> Varian Medical Systems Inc (VAR) | H21: =RTD("cqg.rtd", ,"ContractData",A21, "LastTradeToday",, "T") -> 95.95 | I21: =RTD("cqg.rtd", ,"ContractData",A21, "NetLastTradeToday",, "T") -> 3.82 | J21: =RTD("cqg.rtd", ,"ContractData",A21, "PerCentNetLastTrade",, "T")/100 -> 0.0414631499 | K21: =I21/RTD("cqg.rtd",,"StudyData",A21, "ATR", "MaType=Sim,Period=10", "ATR","D","-1","ALL",,,"FALSE","T")/100 -> 0.0239048811 | L21: =RTD("cqg.rtd", ,"ContractData",A21, "OPen",, "T") -> 96.45 | M21: =RTD("cqg.rtd", ,"ContractData", A21, "HIgh",, "T") -> 96.94 | N21: =RTD("cqg.rtd", ,"ContractData",A21, "LOw",, "T") -> 95.51 | O21: =RTD("cqg.rtd", ,"ContractData",A21, "T_CVol",, "T") -> 385656 | Q21: =IFERROR(O21/RTD("cqg.rtd",,"StudyData",A21, "MA", "InputChoice=Vol,MAType=Sim,Period=21", "MA","D","-1","all",,,,"T"),"") ->  | R21: =IUSG!Q4 -> https://finance.yahoo.com/quote/VAR
A22: =TRIM(IUSG!I5) -> S.US.URI | B22: News | C22: =RTD("cqg.rtd", ,"ContractData",A22, "LongDescription",, "T")&" ("&RIGHT(A22,LEN(A22)-5)&")" -> United Rentals Inc (URI) | H22: =RTD("cqg.rtd", ,"ContractData",A22, "LastTradeToday",, "T") -> 111.61 | I22: =RTD("cqg.rtd", ,"ContractData",A22, "NetLastTradeToday",, "T") -> 2.65 | J22: =RTD("cqg.rtd", ,"ContractData",A22, "PerCentNetLastTrade",, "T")/100 -> 0.02432085169 | K22: =I22/RTD("cqg.rtd",,"StudyData",A22, "ATR", "MaType=Sim,Period=10", "ATR","D","-1","ALL",,,"FALSE","T")/100 -> 0.009317862166 | L22: =RTD("cqg.rtd", ,"ContractData",A22, "OPen",, "T") -> 110.74 | M22: =RTD("cqg.rtd", ,"ContractData", A22, "HIgh",, "T") -> 111.98 | N22: =RTD("cqg.rtd", ,"ContractData",A22, "LOw",, "T") -> 110.68 | O22: =RTD("cqg.rtd", ,"ContractData",A22, "T_CVol",, "T") -> 373076 | Q22: =IFERROR(O22/RTD("cqg.rtd",,"StudyData",A22, "MA", "InputChoice=Vol,MAType=Sim,Period=21", "MA","D","-1","all",,,,"T"),"") ->  | R22: =IUSG!Q5 -> https://finance.yahoo.com/quote/URI
A23: =TRIM(IUSG!I6) -> S.US.TCBI | B23: News | C23: =RTD("cqg.rtd", ,"ContractData",A23, "LongDescription",, "T")&" ("&RIGHT(A23,LEN(A23)-5)&")" -> Texas Capital Bancshares Inc (TCBI) | H23: =RTD("cqg.rtd", ,"ContractData",A23, "LastTradeToday",, "T") -> 77.64 | I23: =RTD("cqg.rtd", ,"ContractData",A23, "NetLastTradeToday",, "T") -> 1.54 | J23: =RTD("cqg.rtd", ,"ContractData",A23, "PerCentNetLastTrade",, "T")/100 -> 0.02023653088 | K23: =I23/RTD("cqg.rtd",,"StudyData",A23, "ATR", "MaType=Sim,Period=10", "ATR","D","-1","ALL",,,"FALSE","T")/100 -> 0.006217198224 | L23: =RTD("cqg.rtd", ,"ContractData",A23, "OPen",, "T") -> 77.65 | M23: =RTD("cqg.rtd", ,"ContractData", A23, "HIgh",, "T") -> 78 | N23: =RTD("cqg.rtd", ,"ContractData",A23, "LOw",, "T") -> 77.1 | O23: =RTD("cqg.rtd", ,"ContractData",A23, "T_CVol",, "T") -> 60583 | Q23: =IFERROR(O23/RTD("cqg.rtd",,"StudyData",A23, "MA", "InputChoice=Vol,MAType=Sim,Period=21", "MA","D","-1","all",,,,"T"),"") -> 0.08497848625 | R23: =IUSG!Q6 -> https://finance.yahoo.com/quote/TCBI
A24: =TRIM(IUSG!I7) -> S.US.TRIP | B24: News | C24: =RTD("cqg.rtd", ,"ContractData",A24, "LongDescription",, "T")&" ("&RIGHT(A24,LEN(A24)-5)&")" -> TripAdvisor, Inc. (TRIP) | H24: =RTD("cqg.rtd", ,"ContractData",A24, "LastTradeToday",, "T") -> 47.04 | I24: =RTD("cqg.rtd", ,"ContractData",A24, "NetLastTradeToday",, "T") -> 0.87 | J24: =RTD("cqg.rtd", ,"ContractData",A24, "PerCentNetLastTrade",, "T")/100 -> 0.01884340481 | K24: =I24/RTD("cqg.rtd",,"StudyData",A24, "ATR", "MaType=Sim,Period=10", "ATR","D","-1","ALL",,,"FALSE","T")/100 -> 0.007631578947 | L24: =RTD("cqg.rtd", ,"ContractData",A24, "OPen",, "T") -> 46.18 | M24: =RTD("cqg.rtd", ,"ContractData", A24, "HIgh",, "T") -> 47.38 | N24: =RTD("cqg.rtd", ,"ContractData",A24, "LOw",, "T") -> 46.03 | O24: =RTD("cqg.rtd", ,"ContractData",A24, "T_CVol",, "T") -> 956867 | Q24: =IFERROR(O24/RTD("cqg.rtd",,"StudyData",A24, "MA", "InputChoice=Vol,MAType=Sim,Period=21", "MA","D","-1","all",,,,"T"),"") ->  | R24: =IUSG!Q7 -> https://finance.yahoo.com/quote/TRIP
A25: =TRIM(IUSG!I8) -> S.US.XLNX | B25: News | C25: =RTD("cqg.rtd", ,"ContractData",A25, "LongDescription",, "T")&" ("&RIGHT(A25,LEN(A25)-5)&")" -> Xilinx Inc (XLNX) | H25: =RTD("cqg.rtd", ,"ContractData",A25, "LastTradeToday",, "T") -> 64.43 | I25: =RTD("cqg.rtd", ,"ContractData",A25, "NetLastTradeToday",, "T") -> 1.04 | J25: =RTD("cqg.rtd", ,"ContractData",A25, "PerCentNetLastTrade",, "T")/100 -> 0.01640637324 | K25: =I25/RTD("cqg.rtd",,"StudyData",A25, "ATR", "MaType=Sim,Period=10", "ATR","D","-1","ALL",,,"FALSE","T")/100 -> 0.006675224647 | L25: =RTD("cqg.rtd", ,"ContractData",A25, "OPen",, "T") -> 63.59 | M25: =RTD("cqg.rtd", ,"ContractData", A25, "HIgh",, "T") -> 64.55 | N25: =RTD("cqg.rtd", ,"ContractData",A25, "LOw",, "T") -> 63.49 | O25: =RTD("cqg.rtd", ,"ContractData",A25, "T_CVol",, "T") -> 1087626 | Q25: =IFERROR(O25/RTD("cqg.rtd",,"StudyData",A25, "MA", "InputChoice=Vol,MAType=Sim,Period=21", "MA","D","-1","all",,,,"T"),"") -> 0.310415337 | R25: =IUSG!Q8 -> https://finance.yahoo.com/quote/XLNX
A26: =TRIM(IUSG!I9) -> S.US.LB | B26: News | C26: =RTD("cqg.rtd", ,"ContractData",A26, "LongDescription",, "T")&" ("&RIGHT(A26,LEN(A26)-5)&")" -> L Brands, Inc. (LB) | H26: =RTD("cqg.rtd", ,"ContractData",A26, "LastTradeToday",, "T") -> 51.89 | I26: =RTD("cqg.rtd", ,"ContractData",A26, "NetLastTradeToday",, "T") -> 0.81 | J26: =RTD("cqg.rtd", ,"ContractData",A26, "PerCentNetLastTrade",, "T")/100 -> 0.01585747847 | K26: =I26/RTD("cqg.rtd",,"StudyData",A26, "ATR", "MaType=Sim,Period=10", "ATR","D","-1","ALL",,,"FALSE","T")/100 -> 0.005628908965 | L26: =RTD("cqg.rtd", ,"ContractData",A26, "OPen",, "T") -> 51.21 | M26: =RTD("cqg.rtd", ,"ContractData", A26, "HIgh",, "T") -> 51.95 | N26: =RTD("cqg.rtd", ,"ContractData",A26, "LOw",, "T") -> 51 | O26: =RTD("cqg.rtd", ,"ContractData",A26, "T_CVol",, "T") -> 560238 | Q26: =IFERROR(O26/RTD("cqg.rtd",,"StudyData",A26, "MA", "InputChoice=Vol,MAType=Sim,Period=21", "MA","D","-1","all",,,,"T"),"") -> 0.125031602 | R26: =IUSG!Q9 -> https://finance.yahoo.com/quote/LB
A27: =TRIM(IUSG!I10) -> S.US.MUR | B27: News | C27: =RTD("cqg.rtd", ,"ContractData",A27, "LongDescription",, "T")&" ("&RIGHT(A27,LEN(A27)-5)&")" -> Murphy Oil Corp (MUR) | H27: =RTD("cqg.rtd", ,"ContractData",A27, "LastTradeToday",, "T") -> 26.55 | I27: =RTD("cqg.rtd", ,"ContractData",A27, "NetLastTradeToday",, "T") -> 0.37 | J27: =RTD("cqg.rtd", ,"ContractData",A27, "PerCentNetLastTrade",, "T")/100 -> 0.0141329259 | K27: =I27/RTD("cqg.rtd",,"StudyData",A27, "ATR", "MaType=Sim,Period=10", "ATR","D","-1","ALL",,,"FALSE","T")/100 -> 0.003957219251 | L27: =RTD("cqg.rtd", ,"ContractData",A27, "OPen",, "T") -> 26.11 | M27: =RTD("cqg.rtd", ,"ContractData", A27, "HIgh",, "T") -> 26.68 | N27: =RTD("cqg.rtd", ,"ContractData",A27, "LOw",, "T") -> 25.98 | O27: =RTD("cqg.rtd", ,"ContractData",A27, "T_CVol",, "T") -> 415613 | Q27: =IFERROR(O27/RTD("cqg.rtd",,"StudyData",A27, "MA", "InputChoice=Vol,MAType=Sim,Period=21", "MA","D","-1","all",,,,"T"),"") -> 0.1411369614 | R27: =IUSG!Q10 -> https://finance.yahoo.com/quote/MUR | S27: Bottom 15 Performing Companies
A28: =TRIM(IUSG!I11) -> S.US.CTSH | B28: News | C28: =RTD("cqg.rtd", ,"ContractData",A28, "LongDescription",, "T")&" ("&RIGHT(A28,LEN(A28)-5)&")" -> Cognizant Tech Solutions Corp (CTSH) | H28: =RTD("cqg.rtd", ,"ContractData",A28, "LastTradeToday",, "T") -> 64.09 | I28: =RTD("cqg.rtd", ,"ContractData",A28, "NetLastTradeToday",, "T") -> 0.87 | J28: =RTD("cqg.rtd", ,"ContractData",A28, "PerCentNetLastTrade",, "T")/100 -> 0.01376146789 | K28: =I28/RTD("cqg.rtd",,"StudyData",A28, "ATR", "MaType=Sim,Period=10", "ATR","D","-1","ALL",,,"FALSE","T")/100 -> 0.009698996656 | L28: =RTD("cqg.rtd", ,"ContractData",A28, "OPen",, "T") -> 63.19 | M28: =RTD("cqg.rtd", ,"ContractData", A28, "HIgh",, "T") -> 64.18 | N28: =RTD("cqg.rtd", ,"ContractData",A28, "LOw",, "T") -> 63 | O28: =RTD("cqg.rtd", ,"ContractData",A28, "T_CVol",, "T") -> 1576957 | Q28: =IFERROR(O28/RTD("cqg.rtd",,"StudyData",A28, "MA", "InputChoice=Vol,MAType=Sim,Period=21", "MA","D","-1","all",,,,"T"),"") -> 0.3734981128 | R28: =IUSG!Q11 -> https://finance.yahoo.com/quote/CTSH
A29: =TRIM(IUSG!I12) -> S.US.CSL | B29: News | C29: =RTD("cqg.rtd", ,"ContractData",A29, "LongDescription",, "T")&" ("&RIGHT(A29,LEN(A29)-5)&")" -> Carlisle Cos Inc (CSL) | H29: =RTD("cqg.rtd", ,"ContractData",A29, "LastTradeToday",, "T") -> 104.96 | I29: =RTD("cqg.rtd", ,"ContractData",A29, "NetLastTradeToday",, "T") -> 1.41 | J29: =RTD("cqg.rtd", ,"ContractData",A29, "PerCentNetLastTrade",, "T")/100 -> 0.01361661033 | K29: =I29/RTD("cqg.rtd",,"StudyData",A29, "ATR", "MaType=Sim,Period=10", "ATR","D","-1","ALL",,,"FALSE","T")/100 -> 0.005845771144 | L29: =RTD("cqg.rtd", ,"ContractData",A29, "OPen",, "T") -> 103.21 | M29: =RTD("cqg.rtd", ,"ContractData", A29, "HIgh",, "T") -> 105.24 | N29: =RTD("cqg.rtd", ,"ContractData",A29, "LOw",, "T") -> 103.21 | O29: =RTD("cqg.rtd", ,"ContractData",A29, "T_CVol",, "T") -> 93202 | Q29: =IFERROR(O29/RTD("cqg.rtd",,"StudyData",A29, "MA", "InputChoice=Vol,MAType=Sim,Period=21", "MA","D","-1","all",,,,"T"),"") -> 0.1540318215 | R29: =IUSG!Q12 -> https://finance.yahoo.com/quote/CSL
A30: =TRIM(IUSG!I13) -> S.US.GPOR | B30: News | C30: =RTD("cqg.rtd", ,"ContractData",A30, "LongDescription",, "T")&" ("&RIGHT(A30,LEN(A30)-5)&")" -> Gulfport Energy (GPOR) | H30: =RTD("cqg.rtd", ,"ContractData",A30, "LastTradeToday",, "T") -> 15.9 | I30: =RTD("cqg.rtd", ,"ContractData",A30, "NetLastTradeToday",, "T") -> 0.21 | J30: =RTD("cqg.rtd", ,"ContractData",A30, "PerCentNetLastTrade",, "T")/100 -> 0.01338432122 | K30: =I30/RTD("cqg.rtd",,"StudyData",A30, "ATR", "MaType=Sim,Period=10", "ATR","D","-1","ALL",,,"FALSE","T")/100 -> 0.003776978417 | L30: =RTD("cqg.rtd", ,"ContractData",A30, "OPen",, "T") -> 15.65 | M30: =RTD("cqg.rtd", ,"ContractData", A30, "HIgh",, "T") -> 15.95 | N30: =RTD("cqg.rtd", ,"ContractData",A30, "LOw",, "T") -> 15.54 | O30: =RTD("cqg.rtd", ,"ContractData",A30, "T_CVol",, "T") -> 616980 | Q30: =IFERROR(O30/RTD("cqg.rtd",,"StudyData",A30, "MA", "InputChoice=Vol,MAType=Sim,Period=21", "MA","D","-1","all",,,,"T"),"") -> 0.1648771417 | R30: =IUSG!Q13 -> https://finance.yahoo.com/quote/GPOR
A31: =TRIM(IUSG!I14) -> S.US.CHS | B31: News | C31: =RTD("cqg.rtd", ,"ContractData",A31, "LongDescription",, "T")&" ("&RIGHT(A31,LEN(A31)-5)&")" -> Chicos FAS Inc (CHS) | H31: =RTD("cqg.rtd", ,"ContractData",A31, "LastTradeToday",, "T") -> 13.85 | I31: =RTD("cqg.rtd", ,"ContractData",A31, "NetLastTradeToday",, "T") -> 0.18 | J31: =RTD("cqg.rtd", ,"ContractData",A31, "PerCentNetLastTrade",, "T")/100 -> 0.01316752012 | K31: =I31/RTD("cqg.rtd",,"StudyData",A31, "ATR", "MaType=Sim,Period=10", "ATR","D","-1","ALL",,,"FALSE","T")/100 -> 0.004639175258 | L31: =RTD("cqg.rtd", ,"ContractData",A31, "OPen",, "T") -> 13.69 | M31: =RTD("cqg.rtd", ,"ContractData", A31, "HIgh",, "T") -> 13.85 | N31: =RTD("cqg.rtd", ,"ContractData",A31, "LOw",, "T") -> 13.62 | O31: =RTD("cqg.rtd", ,"ContractData",A31, "T_CVol",, "T") -> 183945 | Q31: =IFERROR(O31/RTD("cqg.rtd",,"StudyData",A31, "MA", "InputChoice=Vol,MAType=Sim,Period=21", "MA","D","-1","all",,,,"T"),"") -> 0.08059677557 | R31: =IUSG!Q14 -> https://finance.yahoo.com/quote/CHS
A32: =TRIM(IUSG!I15) -> S.US.AAPL | B32: News | C32: =RTD("cqg.rtd", ,"ContractData",A32, "LongDescription",, "T")&" ("&RIGHT(A32,LEN(A32)-5)&")" -> Apple Inc (AAPL) | H32: =RTD("cqg.rtd", ,"ContractData",A32, "LastTradeToday",, "T") -> 150.86 | I32: =RTD("cqg.rtd", ,"ContractData",A32, "NetLastTradeToday",, "T") -> 1.9 | J32: =RTD("cqg.rtd", ,"ContractData",A32, "PerCentNetLastTrade",, "T")/100 -> 0.01275510204 | K32: =I32/RTD("cqg.rtd",,"StudyData",A32, "ATR", "MaType=Sim,Period=10", "ATR","D","-1","ALL",,,"FALSE","T")/100 -> 0.01047986762 | L32: =RTD("cqg.rtd", ,"ContractData",A32, "OPen",, "T") -> 149.03 | M32: =RTD("cqg.rtd", ,"ContractData", A32, "HIgh",, "T") -> 150.95 | N32: =RTD("cqg.rtd", ,"ContractData",A32, "LOw",, "T") -> 149.03 | O32: =RTD("cqg.rtd", ,"ContractData",A32, "T_CVol",, "T") -> 11274697 | Q32: =IFERROR(O32/RTD("cqg.rtd",,"StudyData",A32, "MA", "InputChoice=Vol,MAType=Sim,Period=21", "MA","D","-1","all",,,,"T"),"") -> 0.4921801362 | R32: =IUSG!Q15 -> https://finance.yahoo.com/quote/AAPL
C33: Bottom 15 Description | H33: Last | I33: NC | J33: %NC | K33: NC/ATR | L33: Open | M33: High | N33: Low | O33: Volume | Q33: Ratio
A34: =TRIM(IUSG!N15) -> S.US.KMT | B34: News | C34: =RTD("cqg.rtd", ,"ContractData",A34, "LongDescription",, "T")&" ("&RIGHT(A34,LEN(A34)-5)&")" -> Kennametal Inc (KMT) | H34: =RTD("cqg.rtd", ,"ContractData",A34, "LastTradeToday",, "T") -> 39.36 | I34: =RTD("cqg.rtd", ,"ContractData",A34, "NetLastTradeToday",, "T") -> -0.76 | J34: =RTD("cqg.rtd", ,"ContractData",A34, "PerCentNetLastTrade",, "T")/100 -> -0.01894317049 | K34: =I34/RTD("cqg.rtd",,"StudyData",A34, "ATR", "MaType=Sim,Period=10", "ATR","D","-1","ALL",,,"FALSE","T")/100 -> -0.006003159558 | L34: =RTD("cqg.rtd", ,"ContractData",A34, "OPen",, "T") -> 39.88 | M34: =RTD("cqg.rtd", ,"ContractData", A34, "HIgh",, "T") -> 40.01 | N34: =RTD("cqg.rtd", ,"ContractData",A34, "LOw",, "T") -> 39.36 | O34: =RTD("cqg.rtd", ,"ContractData",A34, "T_CVol",, "T") -> 141230 | Q34: =IFERROR(O34/RTD("cqg.rtd",,"StudyData",A34, "MA", "InputChoice=Vol,MAType=Sim,Period=21", "MA","D","-1","all",,,,"T"),"") -> 0.1396310516 | R34: =IUSG!AB1 -> https://finance.yahoo.com/quote/KMT
A35: =TRIM(IUSG!N14) -> S.US.MTX | B35: News | C35: =RTD("cqg.rtd", ,"ContractData",A35, "LongDescription",, "T")&" ("&RIGHT(A35,LEN(A35)-5)&")" -> Minerals Technologies Inc (MTX) | H35: =RTD("cqg.rtd", ,"ContractData",A35, "LastTradeToday",, "T") -> 76.25 | I35: =RTD("cqg.rtd", ,"ContractData",A35, "NetLastTradeToday",, "T") -> -1.5 | J35: =RTD("cqg.rtd", ,"ContractData",A35, "PerCentNetLastTrade",, "T")/100 -> -0.0192926045 | K35: =I35/RTD("cqg.rtd",,"StudyData",A35, "ATR", "MaType=Sim,Period=10", "ATR","D","-1","ALL",,,"FALSE","T")/100 -> -0.009386733417 | L35: =RTD("cqg.rtd", ,"ContractData",A35, "OPen",, "T") -> 77 | M35: =RTD("cqg.rtd", ,"ContractData", A35, "HIgh",, "T") -> 77 | N35: =RTD("cqg.rtd", ,"ContractData",A35, "LOw",, "T") -> 76.15 | O35: =RTD("cqg.rtd", ,"ContractData",A35, "T_CVol",, "T") -> 13367 | Q35: =IFERROR(O35/RTD("cqg.rtd",,"StudyData",A35, "MA", "InputChoice=Vol,MAType=Sim,Period=21", "MA","D","-1","all",,,,"T"),"") -> 0.1037792526 | R35: =IUSG!AB2 -> https://finance.yahoo.com/quote/MTX
A36: =TRIM(IUSG!N13) -> S.US.TFX | B36: News | C36: =RTD("cqg.rtd", ,"ContractData",A36, "LongDescription",, "T")&" ("&RIGHT(A36,LEN(A36)-5)&")" -> Teleflex Inc (TFX) | H36: =RTD("cqg.rtd", ,"ContractData",A36, "LastTradeToday",, "T") -> 196.31 | I36: =RTD("cqg.rtd", ,"ContractData",A36, "NetLastTradeToday",, "T") -> -4.03 | J36: =RTD("cqg.rtd", ,"ContractData",A36, "PerCentNetLastTrade",, "T")/100 -> -0.02011580313 | K36: =I36/RTD("cqg.rtd",,"StudyData",A36, "ATR", "MaType=Sim,Period=10", "ATR","D","-1","ALL",,,"FALSE","T")/100 -> -0.009455654622 | L36: =RTD("cqg.rtd", ,"ContractData",A36, "OPen",, "T") -> 199.95 | M36: =RTD("cqg.rtd", ,"ContractData", A36, "HIgh",, "T") -> 199.95 | N36: =RTD("cqg.rtd", ,"ContractData",A36, "LOw",, "T") -> 195.53 | O36: =RTD("cqg.rtd", ,"ContractData",A36, "T_CVol",, "T") -> 39045 | Q36: =IFERROR(O36/RTD("cqg.rtd",,"StudyData",A36, "MA", "InputChoice=Vol,MAType=Sim,Period=21", "MA","D","-1","all",,,,"T"),"") -> 0.1153191679 | R36: =IUSG!AB3 -> https://finance.yahoo.com/quote/TFX
A37: =TRIM(IUSG!N12) -> S.US.GVA | B37: News | C37: =RTD("cqg.rtd", ,"ContractData",A37, "LongDescription",, "T")&" ("&RIGHT(A37,LEN(A37)-5)&")" -> Granite Constr Inc (GVA) | H37: =RTD("cqg.rtd", ,"ContractData",A37, "LastTradeToday",, "T") -> 51.6 | I37: =RTD("cqg.rtd", ,"ContractData",A37, "NetLastTradeToday",, "T") -> -1.07 | J37: =RTD("cqg.rtd", ,"ContractData",A37, "PerCentNetLastTrade",, "T")/100 -> -0.02031516993 | K37: =I37/RTD("cqg.rtd",,"StudyData",A37, "ATR", "MaType=Sim,Period=10", "ATR","D","-1","ALL",,,"FALSE","T")/100 -> -0.006819630338 | L37: =RTD("cqg.rtd", ,"ContractData",A37, "OPen",, "T") -> 52.66 | M37: =RTD("cqg.rtd", ,"ContractData", A37, "HIgh",, "T") -> 52.83 | N37: =RTD("cqg.rtd", ,"ContractData",A37, "LOw",, "T") -> 51.42 | O37: =RTD("cqg.rtd", ,"ContractData",A37, "T_CVol",, "T") -> 30489 | Q37: =IFERROR(O37/RTD("cqg.rtd",,"StudyData",A37, "MA", "InputChoice=Vol,MAType=Sim,Period=21", "MA","D","-1","all",,,,"T"),"") -> 0.05892527898 | R37: =IUSG!AB4 -> https://finance.yahoo.com/quote/GVA
A38: =TRIM(IUSG!N11) -> S.US.KIM | B38: News | C38: =RTD("cqg.rtd", ,"ContractData",A38, "LongDescription",, "T")&" ("&RIGHT(A38,LEN(A38)-5)&")" -> Kimco Realty Corp (KIM) | H38: =RTD("cqg.rtd", ,"ContractData",A38, "LastTradeToday",, "T") -> 19.51 | I38: =RTD("cqg.rtd", ,"ContractData",A38, "NetLastTradeToday",, "T") -> -0.43 | J38: =RTD("cqg.rtd", ,"ContractData",A38, "PerCentNetLastTrade",, "T")/100 -> -0.02156469408 | K38: =I38/RTD("cqg.rtd",,"StudyData",A38, "ATR", "MaType=Sim,Period=10", "ATR","D","-1","ALL",,,"FALSE","T")/100 -> -0.006803797468 | L38: =RTD("cqg.rtd", ,"ContractData",A38, "OPen",, "T") -> 19.96 | M38: =RTD("cqg.rtd", ,"ContractData", A38, "HIgh",, "T") -> 20.01 | N38: =RTD("cqg.rtd", ,"ContractData",A38, "LOw",, "T") -> 19.47 | O38: =RTD("cqg.rtd", ,"ContractData",A38, "T_CVol",, "T") -> 420911 | Q38: =IFERROR(O38/RTD("cqg.rtd",,"StudyData",A38, "MA", "InputChoice=Vol,MAType=Sim,Period=21", "MA","D","-1","all",,,,"T"),"") -> 0.09983061123 | R38: =IUSG!AB5 -> https://finance.yahoo.com/quote/KIM
A39: =TRIM(IUSG!N10) -> S.US.SKT | B39: News | C39: =RTD("cqg.rtd", ,"ContractData",A39, "LongDescription",, "T")&" ("&RIGHT(A39,LEN(A39)-5)&")" -> Tanger Factory Outlet Centers, Inc. (SKT) | H39: =RTD("cqg.rtd", ,"ContractData",A39, "LastTradeToday",, "T") -> 28 | I39: =RTD("cqg.rtd", ,"ContractData",A39, "NetLastTradeToday",, "T") -> -0.63 | J39: =RTD("cqg.rtd", ,"ContractData",A39, "PerCentNetLastTrade",, "T")/100 -> -0.02200488998 | K39: =I39/RTD("cqg.rtd",,"StudyData",A39, "ATR", "MaType=Sim,Period=10", "ATR","D","-1","ALL",,,"FALSE","T")/100 -> -0.006501547988 | L39: =RTD("cqg.rtd", ,"ContractData",A39, "OPen",, "T") -> 28.75 | M39: =RTD("cqg.rtd", ,"ContractData", A39, "HIgh",, "T") -> 29 | N39: =RTD("cqg.rtd", ,"ContractData",A39, "LOw",, "T") -> 27.89 | O39: =RTD("cqg.rtd", ,"ContractData",A39, "T_CVol",, "T") -> 443481 | Q39: =IFERROR(O39/RTD("cqg.rtd",,"StudyData",A39, "MA", "InputChoice=Vol,MAType=Sim,Period=21", "MA","D","-1","all",,,,"T"),"") -> 0.2375900533 | R39: =IUSG!AB6 -> https://finance.yahoo.com/quote/SKT
A40: =TRIM(IUSG!N9) -> S.US.TCO | B40: News | C40: =RTD("cqg.rtd", ,"ContractData",A40, "LongDescription",, "T")&" ("&RIGHT(A40,LEN(A40)-5)&")" -> Taubman Centers Inc (TCO) | H40: =RTD("cqg.rtd", ,"ContractData",A40, "LastTradeToday",, "T") -> 59.81 | I40: =RTD("cqg.rtd", ,"ContractData",A40, "NetLastTradeToday",, "T") -> -1.38 | J40: =RTD("cqg.rtd", ,"ContractData",A40, "PerCentNetLastTrade",, "T")/100 -> -0.02255270469 | K40: =I40/RTD("cqg.rtd",,"StudyData",A40, "ATR", "MaType=Sim,Period=10", "ATR","D","-1","ALL",,,"FALSE","T")/100 -> -0.007986111111 | L40: =RTD("cqg.rtd", ,"ContractData",A40, "OPen",, "T") -> 61.17 | M40: =RTD("cqg.rtd", ,"ContractData", A40, "HIgh",, "T") -> 61.24 | N40: =RTD("cqg.rtd", ,"ContractData",A40, "LOw",, "T") -> 59.68 | O40: =RTD("cqg.rtd", ,"ContractData",A40, "T_CVol",, "T") -> 85593 | Q40: =IFERROR(O40/RTD("cqg.rtd",,"StudyData",A40, "MA", "InputChoice=Vol,MAType=Sim,Period=21", "MA","D","-1","all",,,,"T"),"") -> 0.2050133373 | R40: =IUSG!AB7 -> https://finance.yahoo.com/quote/TCO
A41: =TRIM(IUSG!N8) -> S.US.SLM | B41: News | C41: =RTD("cqg.rtd", ,"ContractData",A41, "LongDescription",, "T")&" ("&RIGHT(A41,LEN(A41)-5)&")" -> SLM Corporation (SLM) | H41: =RTD("cqg.rtd", ,"ContractData",A41, "LastTradeToday",, "T") -> 11.65 | I41: =RTD("cqg.rtd", ,"ContractData",A41, "NetLastTradeToday",, "T") -> -0.28 | J41: =RTD("cqg.rtd", ,"ContractData",A41, "PerCentNetLastTrade",, "T")/100 -> -0.02347024308 | K41: =I41/RTD("cqg.rtd",,"StudyData",A41, "ATR", "MaType=Sim,Period=10", "ATR","D","-1","ALL",,,"FALSE","T")/100 -> -0.007954545455 | L41: =RTD("cqg.rtd", ,"ContractData",A41, "OPen",, "T") -> 11.97 | M41: =RTD("cqg.rtd", ,"ContractData", A41, "HIgh",, "T") -> 12.05 | N41: =RTD("cqg.rtd", ,"ContractData",A41, "LOw",, "T") -> 11.44 | O41: =RTD("cqg.rtd", ,"ContractData",A41, "T_CVol",, "T") -> 2842162 | Q41: =IFERROR(O41/RTD("cqg.rtd",,"StudyData",A41, "MA", "InputChoice=Vol,MAType=Sim,Period=21", "MA","D","-1","all",,,,"T"),"") -> 0.7298725919 | R41: =IUSG!AB8 -> https://finance.yahoo.com/quote/SLM
A42: =TRIM(IUSG!N7) -> S.US.WRI | B42: News | C42: =RTD("cqg.rtd", ,"ContractData",A42, "LongDescription",, "T")&" ("&RIGHT(A42,LEN(A42)-5)&")" -> Weingarten Realty Investors (WRI) | H42: =RTD("cqg.rtd", ,"ContractData",A42, "LastTradeToday",, "T") -> 32.21 | I42: =RTD("cqg.rtd", ,"ContractData",A42, "NetLastTradeToday",, "T") -> -0.78 | J42: =RTD("cqg.rtd", ,"ContractData",A42, "PerCentNetLastTrade",, "T")/100 -> -0.02364352834 | K42: =I42/RTD("cqg.rtd",,"StudyData",A42, "ATR", "MaType=Sim,Period=10", "ATR","D","-1","ALL",,,"FALSE","T")/100 -> -0.01031746032 | L42: =RTD("cqg.rtd", ,"ContractData",A42, "OPen",, "T") -> 32.99 | M42: =RTD("cqg.rtd", ,"ContractData", A42, "HIgh",, "T") -> 33.02 | N42: =RTD("cqg.rtd", ,"ContractData",A42, "LOw",, "T") -> 32.19 | O42: =RTD("cqg.rtd", ,"ContractData",A42, "T_CVol",, "T") -> 108498 | Q42: =IFERROR(O42/RTD("cqg.rtd",,"StudyData",A42, "MA", "InputChoice=Vol,MAType=Sim,Period=21", "MA","D","-1","all",,,,"T"),"") -> 0.1041838652 | R42: =IUSG!AB9 -> https://finance.yahoo.com/quote/WRI
A43: =TRIM(IUSG!N6) -> S.US.JWA | B43: News | C43: =RTD("cqg.rtd", ,"ContractData",A43, "LongDescription",, "T")&" ("&RIGHT(A43,LEN(A43)-5)&")" -> John Wiley/Sons Inc (JWA) | H43: =RTD("cqg.rtd", ,"ContractData",A43, "LastTradeToday",, "T") -> 52.25 | I43: =RTD("cqg.rtd", ,"ContractData",A43, "NetLastTradeToday",, "T") -> -1.5 | J43: =RTD("cqg.rtd", ,"ContractData",A43, "PerCentNetLastTrade",, "T")/100 -> -0.02790697674 | K43: =I43/RTD("cqg.rtd",,"StudyData",A43, "ATR", "MaType=Sim,Period=10", "ATR","D","-1","ALL",,,"FALSE","T")/100 -> -0.0141509434 | L43: =RTD("cqg.rtd", ,"ContractData",A43, "OPen",, "T") -> 53.35 | M43: =RTD("cqg.rtd", ,"ContractData", A43, "HIgh",, "T") -> 53.5 | N43: =RTD("cqg.rtd", ,"ContractData",A43, "LOw",, "T") -> 52.25 | O43: =RTD("cqg.rtd", ,"ContractData",A43, "T_CVol",, "T") -> 28825 | Q43: =IFERROR(O43/RTD("cqg.rtd",,"StudyData",A43, "MA", "InputChoice=Vol,MAType=Sim,Period=21", "MA","D","-1","all",,,,"T"),"") -> 0.1546846192 | R43: =IUSG!AB10 -> https://finance.yahoo.com/quote/JWA
A44: =TRIM(IUSG!N5) -> S.US.INCY | B44: News | C44: =RTD("cqg.rtd", ,"ContractData",A44, "LongDescription",, "T")&" ("&RIGHT(A44,LEN(A44)-5)&")" -> Incyte Corporation (INCY) | H44: =RTD("cqg.rtd", ,"ContractData",A44, "LastTradeToday",, "T") -> 118.98 | I44: =RTD("cqg.rtd", ,"ContractData",A44, "NetLastTradeToday",, "T") -> -3.43 | J44: =RTD("cqg.rtd", ,"ContractData",A44, "PerCentNetLastTrade",, "T")/100 -> -0.02802058655 | K44: =I44/RTD("cqg.rtd",,"StudyData",A44, "ATR", "MaType=Sim,Period=10", "ATR","D","-1","ALL",,,"FALSE","T")/100 -> -0.01289958631 | L44: =RTD("cqg.rtd", ,"ContractData",A44, "OPen",, "T") -> 121.72 | M44: =RTD("cqg.rtd", ,"ContractData", A44, "HIgh",, "T") -> 121.8 | N44: =RTD("cqg.rtd", ,"ContractData",A44, "LOw",, "T") -> 118.38 | O44: =RTD("cqg.rtd", ,"ContractData",A44, "T_CVol",, "T") -> 411599 | Q44: =IFERROR(O44/RTD("cqg.rtd",,"StudyData",A44, "MA", "InputChoice=Vol,MAType=Sim,Period=21", "MA","D","-1","all",,,,"T"),"") ->  | R44: =IUSG!AB11 -> https://finance.yahoo.com/quote/INCY
A45: =TRIM(IUSG!N4) -> S.US.CHTR | B45: News | C45: =RTD("cqg.rtd", ,"ContractData",A45, "LongDescription",, "T")&" ("&RIGHT(A45,LEN(A45)-5)&")" -> Charter Communications, Inc. Class A (CHTR) | H45: =RTD("cqg.rtd", ,"ContractData",A45, "LastTradeToday",, "T") -> 325.13 | I45: =RTD("cqg.rtd", ,"ContractData",A45, "NetLastTradeToday",, "T") -> -9.65 | J45: =RTD("cqg.rtd", ,"ContractData",A45, "PerCentNetLastTrade",, "T")/100 -> -0.02882489993 | K45: =I45/RTD("cqg.rtd",,"StudyData",A45, "ATR", "MaType=Sim,Period=10", "ATR","D","-1","ALL",,,"FALSE","T")/100 -> -0.01259133612 | L45: =RTD("cqg.rtd", ,"ContractData",A45, "OPen",, "T") -> 329.52 | M45: =RTD("cqg.rtd", ,"ContractData", A45, "HIgh",, "T") -> 331 | N45: =RTD("cqg.rtd", ,"ContractData",A45, "LOw",, "T") -> 325 | O45: =RTD("cqg.rtd", ,"ContractData",A45, "T_CVol",, "T") -> 623779 | Q45: =IFERROR(O45/RTD("cqg.rtd",,"StudyData",A45, "MA", "InputChoice=Vol,MAType=Sim,Period=21", "MA","D","-1","all",,,,"T"),"") -> 0.4377018978 | R45: =IUSG!AB12 -> https://finance.yahoo.com/quote/CHTR
A46: =TRIM(IUSG!N3) -> S.US.MIK | B46: News | C46: =RTD("cqg.rtd", ,"ContractData",A46, "LongDescription",, "T")&" ("&RIGHT(A46,LEN(A46)-5)&")" -> The Michaels Companies, Inc. (MIK) | H46: =RTD("cqg.rtd", ,"ContractData",A46, "LastTradeToday",, "T") -> 21.78 | I46: =RTD("cqg.rtd", ,"ContractData",A46, "NetLastTradeToday",, "T") -> -0.73 | J46: =RTD("cqg.rtd", ,"ContractData",A46, "PerCentNetLastTrade",, "T")/100 -> -0.0324300311 | K46: =I46/RTD("cqg.rtd",,"StudyData",A46, "ATR", "MaType=Sim,Period=10", "ATR","D","-1","ALL",,,"FALSE","T")/100 -> -0.01398467433 | L46: =RTD("cqg.rtd", ,"ContractData",A46, "OPen",, "T") -> 22.5 | M46: =RTD("cqg.rtd", ,"ContractData", A46, "HIgh",, "T") -> 22.5 | N46: =RTD("cqg.rtd", ,"ContractData",A46, "LOw",, "T") -> 21.77 | O46: =RTD("cqg.rtd", ,"ContractData",A46, "T_CVol",, "T") -> 445241 | Q46: =IFERROR(O46/RTD("cqg.rtd",,"StudyData",A46, "MA", "InputChoice=Vol,MAType=Sim,Period=21", "MA","D","-1","all",,,,"T"),"") -> 0.2706222192 | R46: =IUSG!AB13 -> https://finance.yahoo.com/quote/MIK
A47: =TRIM(IUSG!N2) -> S.US.LOGM | B47: News | C47: =RTD("cqg.rtd", ,"ContractData",A47, "LongDescription",, "T")&" ("&RIGHT(A47,LEN(A47)-5)&")" -> LogMein, Inc (LOGM) | H47: =RTD("cqg.rtd", ,"ContractData",A47, "LastTradeToday",, "T") -> 116.3 | I47: =RTD("cqg.rtd", ,"ContractData",A47, "NetLastTradeToday",, "T") -> -4.65 | J47: =RTD("cqg.rtd", ,"ContractData",A47, "PerCentNetLastTrade",, "T")/100 -> -0.03844563869 | K47: =I47/RTD("cqg.rtd",,"StudyData",A47, "ATR", "MaType=Sim,Period=10", "ATR","D","-1","ALL",,,"FALSE","T")/100 -> -0.01385991058 | L47: =RTD("cqg.rtd", ,"ContractData",A47, "OPen",, "T") -> 120.45 | M47: =RTD("cqg.rtd", ,"ContractData", A47, "HIgh",, "T") -> 120.45 | N47: =RTD("cqg.rtd", ,"ContractData",A47, "LOw",, "T") -> 115.95 | O47: =RTD("cqg.rtd", ,"ContractData",A47, "T_CVol",, "T") -> 229300 | Q47: =IFERROR(O47/RTD("cqg.rtd",,"StudyData",A47, "MA", "InputChoice=Vol,MAType=Sim,Period=21", "MA","D","-1","all",,,,"T"),"") -> 0.3375349553 | R47: =IUSG!AB14 -> https://finance.yahoo.com/quote/LOGM
A48: =TRIM(IUSG!N1) -> S.US.CAR | B48: News | C48: =RTD("cqg.rtd", ,"ContractData",A48, "LongDescription",, "T")&" ("&RIGHT(A48,LEN(A48)-5)&")" -> AVIS Budget Group Inc (CAR) | H48: =RTD("cqg.rtd", ,"ContractData",A48, "LastTradeToday",, "T") -> 27.81 | I48: =RTD("cqg.rtd", ,"ContractData",A48, "NetLastTradeToday",, "T") -> -1.81 | J48: =RTD("cqg.rtd", ,"ContractData",A48, "PerCentNetLastTrade",, "T")/100 -> -0.06110735989 | K48: =I48/RTD("cqg.rtd",,"StudyData",A48, "ATR", "MaType=Sim,Period=10", "ATR","D","-1","ALL",,,"FALSE","T")/100 -> -0.01339748335 | L48: =RTD("cqg.rtd", ,"ContractData",A48, "OPen",, "T") -> 29.06 | M48: =RTD("cqg.rtd", ,"ContractData", A48, "HIgh",, "T") -> 29.47 | N48: =RTD("cqg.rtd", ,"ContractData",A48, "LOw",, "T") -> 27.8 | O48: =RTD("cqg.rtd", ,"ContractData",A48, "T_CVol",, "T") -> 879955 | Q48: =IFERROR(O48/RTD("cqg.rtd",,"StudyData",A48, "MA", "InputChoice=Vol,MAType=Sim,Period=21", "MA","D","-1","all",,,,"T"),"") -> 0.341082995 | R48: =IUSG!AB15 -> https://finance.yahoo.com/quote/CAR
C49: CQG Inc., Copyright © 2017 | G49: Designed by Thom Hartle | J49: iShares is a registered trademark of BlackRock, Inc. S&P® is a registered trademark of Standard & Poor’s Financial Services LLC | W49: =IUSG!B565 -> 0.2553191489 | X49: of the stocks in the ETF are higher today

Sheet Symbols
A1: 3D Systems Corporation | B1: S.US.DDD
A2: 3M Company | B2: S.US.MMM
A3: AO Smith Corp | B3: S.US.AOS
A4: AbbVie Inc. | B4: S.US.ABBV
A5: ABIOMED Inc | B5: S.US.ABMD
A6: Acadia Healthcare Company, Inc. | B6: S.US.ACHC
A7: Accenture PLC Ireland | B7: S.US.ACN
A8: ACI Worldwide Inc | B8: S.US.ACIW
A9: Activision Blizzard Inc | B9: S.US.ATVI
A10: Acuity Brands Inc | B10: S.US.AYI
A11: Acxiom Corp | B11: S.US.ACXM
A12: Adobe Systems Inc | B12: S.US.ADBE
A13: Advance Auto Parts Inc | B13: S.US.AAP
A14: Advanced Micro Devices | B14: S.US.AMD
A15: Aetna Inc | B15: S.US.AET
A16: Agilent Technologies | B16: S.US.A
A17: Air Products & Chems Inc | B17: S.US.APD
A18: Akamai Tech Inc | B18: S.US.AKAM
A19: Akorn Inc | B19: S.US.AKRX
A20: Alaska Air Group Inc | B20: S.US.ALK
A21: Albemarle Corporation | B21: S.US.ALB
A22: Alexander & Baldwin, Inc. | B22: S.US.ALEX
A23: Alexandria Real Estate Equities Inc | B23: S.US.ARE
A24: Alexion Pharmaceuticals | B24: S.US.ALXN
A25: Align Technology Inc | B25: S.US.ALGN
A26: Allegion plc | B26: S.US.ALLE
A27: Alliance Data Systems Corp | B27: S.US.ADS
A28: Alliant Energy Corp | B28: S.US.LNT
A29: Alphabet Inc. Class A | B29: S.US.GOOGL
A30: Google, Inc. Class C | B30: S.US.GOOG
A31: Altria Group Inc | B31: S.US.MO
A32: Amazon.com Inc | B32: S.US.AMZN
A33: AMC Networks Inc. Class A | B33: S.US.AMCX
A34: American Campus Communities Inc | B34: S.US.ACC
A35: American Express Co | B35: S.US.AXP
A36: American Tower Corp ClA | B36: S.US.AMT
A37: American Water Works | B37: S.US.AWK
A38: Ameriprise Financial Inc | B38: S.US.AMP
A39: Amgen Inc | B39: S.US.AMGN
A40: Amphenol | B40: S.US.APH
A41: Anadarko Petroleum Corp | B41: S.US.APC
A42: Analog Devices Inc | B42: S.US.ADI
A43: ANSYS Inc | B43: S.US.ANSS
A44: AON Corporation | B44: S.US.AON
A45: Apache Corporation | B45: S.US.APA
A46: Apartmt Investmt & Mgt Co | B46: S.US.AIV
A47: Apple Inc | B47: S.US.AAPL
A48: Applied Materials Inc | B48: S.US.AMAT
A49: AptarGroup Inc | B49: S.US.ATR
A50: Aqua America Inc | B50: S.US.WTR
A51: ARRIS International plc | B51: S.US.ARRS
A52: Arthur J Gallagher Co | B52: S.US.AJG
A53: Autodesk Inc | B53: S.US.ADSK
A54: Auto Data Processing Inc | B54: S.US.ADP
A55: Autozone Inc | B55: S.US.AZO
A56: AvalonBay Communities, Inc. | B56: S.US.AVB
A57: Avery Dennison Corp | B57: S.US.AVY
A58: AVIS Budget Group Inc | B58: S.US.CAR
A59: Baker Hughes Inc | B59: S.US.BHI
A60: Hawaii Corporation | B60: S.US.BOH
A61: Bank of the Ozarks | B61: S.US.OZRK
A62: Becton Dickinson & Co | B62: S.US.BDX
A63: Belden Inc. | B63: S.US.BDC
A64: Best Buy Co Inc | B64: S.US.BBY
A65: 768: Current Message -> Not found: CAS.US.BIOCA | B65: CAS.US.BIOCA
A66: Bio-Techne Corp | B66: S.US.TECH
A67: Biogen Inc. | B67: S.US.BIIB
A68: Bioverativ Inc. | B68: S.US.BIVV
A69: BLACK HILLS CORP | B69: S.US.BKH
A70: Blackrock Inc | B70: S.US.BLK
A71: Boeing Company | B71: S.US.BA
A72: Boston Beer Co | B72: S.US.SAM
A73: Boston Properties Inc | B73: S.US.BXP
A74: Boston Scientific Corp | B74: S.US.BSX
A75: Brinker Internatl Inc | B75: S.US.EAT
A76: Bristol-Myers Squibb Co | B76: S.US.BMY
A77: Broadcom Limited | B77: S.US.AVGO
A78: Broadridge Financial Solutions | B78: S.US.BR
A79: Brocade Communications Systems, Inc. | B79: S.US.BRCD
A80: BROWN AND BROWN INC | B80: S.US.BRO
A81: Brown-Forman Corporation ClsB | B81: S.US.BFB
A82: Buffalo Wild Wings Inc | B82: S.US.BWLD
A83: Bard (CR) Inc | B83: S.US.BCR
A84: Cabelas Inc | B84: S.US.CAB
A85: Cable ONE, Inc. | B85: S.US.CABO
A86: Cabot Oil/Gas Corp | B86: S.US.COG
A87: Cadence Design Systems, Inc | B87: S.US.CDNS
A88: Camden Property Trust | B88: S.US.CPT
A89: Campbell Soup Company | B89: S.US.CPB
A90: Carlisle Cos Inc | B90: S.US.CSL
A91: Carmax Inc | B91: S.US.KMX
A92: Carters Inc | B92: S.US.CRI
A93: Catalent, Inc. | B93: S.US.CTLT
A94: Caterpillar Inc | B94: S.US.CAT
A95: CBOE Holdings, Inc. | B95: S.US.CBOE
A96: CBRE Group, Inc. | B96: S.US.CBG
A97: CBS Corporation | B97: S.US.CBS
A98: CDK Global, Inc. | B98: S.US.CDK
A99: Celgene Corporation | B99: S.US.CELG
A100: Centerpoint Energy Holding Co. | B100: S.US.CNP
A101: Cerner Corporation | B101: S.US.CERN
A102: CH Robinson Worldwide Inc | B102: S.US.CHRW
A103: Charles River Labs Hldgs Inc | B103: S.US.CRL
A104: Charles Schwab Corp | B104: S.US.SCHW
A105: Charter Communications, Inc. Class A | B105: S.US.CHTR
A106: Cheesecake Factory Inc | B106: S.US.CAKE
A107: Chemical Financial Corp | B107: S.US.CHFC
A108: The Chemours Company | B108: S.US.CC
A109: Chesapeake Energy Corp | B109: S.US.CHK
A110: Chicos FAS Inc | B110: S.US.CHS
A111: Chipotle Mexican Grill | B111: S.US.CMG
A112: Church/Dwight Co Inc | B112: S.US.CHD
A113: Churchill Downs | B113: S.US.CHDN
A114: Cimarex Energy Co | B114: S.US.XEC
A115: Cincinnati Fincl Corp | B115: S.US.CINF
A116: Cinemark Holdings, Inc | B116: S.US.CNK
A117: Cintas Corp | B117: S.US.CTAS
A118: Cirrus Logic Inc | B118: S.US.CRUS
A119: Citizens Financial Group, Inc. | B119: S.US.CFG
A120: Citrix Systems Inc | B120: S.US.CTXS
A121: Clorox Company | B121: S.US.CLX
A122: Chicago Merc Exch Holding Inc | B122: S.US.CME
A123: COACH INC | B123: S.US.COH
A124: Coca-Cola Company | B124: S.US.KO
A125: Cognex Corp | B125: S.US.CGNX
A126: Cognizant Tech Solutions Corp | B126: S.US.CTSH
A127: Coherent Inc. | B127: S.US.COHR
A128: Colgate-Palmolive Co | B128: S.US.CL
A129: Comcast Corp ClsA | B129: S.US.CMCSA
A130: Comerica Inc | B130: S.US.CMA
A131: Commerce Bancshares Inc | B131: S.US.CBSH
A132: CommVault Systems Inc | B132: S.US.CVLT
A133: Compass Minerals Intl | B133: S.US.CMP
A134: Concho Resources Inc | B134: S.US.CXO
A135: Constellation Brands Inc | B135: S.US.STZ
A136: Convergys Corp | B136: S.US.CVG
A137: Cooper Companies Inc (The) | B137: S.US.COO
A138: Copart Inc | B138: S.US.CPRT
A139: Corelogic, Inc. | B139: S.US.CLGX
A140: Corning Incorporated | B140: S.US.GLW
A141: Corporate Office Prop Trust Inc | B141: S.US.OFC
A142: COTY Inc | B142: S.US.COTY
A143: Cracker Barrel Old Country Store | B143: S.US.CBRL
A144: Crane Company | B144: S.US.CR
A145: Crown Castle Intl | B145: S.US.CCI
A146: CSRA Inc. | B146: S.US.CSRA
A147: CSX Corporation | B147: S.US.CSX
A148: Cullen Frost Bankers Inc | B148: S.US.CFR
A149: Cummings Inc | B149: S.US.CMI
A150: Curtiss-Wright Corporation | B150: S.US.CW
A151: Cypress Semicndctr Corp | B151: S.US.CY
A152: CyrusOne Inc | B152: S.US.CONE
A153: Danaher Corporation | B153: S.US.DHR
A154: Darden Restaurants Inc | B154: S.US.DRI
A155: DCT Industrial Trust | B155: S.US.DCT
A156: Deckers Outdoor Corp | B156: S.US.DECK
A157: Deere & Company | B157: S.US.DE
A158: Deluxe Corporation | B158: S.US.DLX
A159: Devon Energy Corp | B159: S.US.DVN
A160: Dicks Sporting Goods Inc. | B160: S.US.DKS
A161: Digital Realty | B161: S.US.DLR
A162: Discover Financial Services | B162: S.US.DFS
A163: Discovery Holding Channel Common A | B163: S.US.DISCA
A164: Discovery Communications Inc. | B164: S.US.DISCK
A165: DISH Network Corp. | B165: S.US.DISH
A166: Dollar General Corporation | B166: S.US.DG
A167: Dollar Tree Stores | B167: S.US.DLTR
A168: Dominion Resources Inc New | B168: S.US.D
A169: Dominos Pizza, Inc. | B169: S.US.DPZ
A170: Donaldson Company Inc | B170: S.US.DCI
A171: Douglas Emmett, Inc. | B171: S.US.DEI
A172: Dr Pepper Snapple Group, Inc | B172: S.US.DPS
A173: Duke Realty Corp | B173: S.US.DRE
A174: Dun & Bradstreet Corp | B174: S.US.DNB
A175: Dunkin' Brands Group, Inc. | B175: S.US.DNKN
A176: DXC Technology Company | B176: S.US.DXC
A177: Dycom Industries Inc | B177: S.US.DY
A178: E.I. du Pont de Nemours and Co. (DuPont) | B178: S.US.DD
A179: E*Trade Financial Corp | B179: S.US.ETFC
A180: Eagle Materials Inc | B180: S.US.EXP
A181: East West Bancorp | B181: S.US.EWBC
A182: Eaton Vance Corp | B182: S.US.EV
A183: eBay Inc | B183: S.US.EBAY
A184: Ecolab Inc | B184: S.US.ECL
A185: Education Realty Trust Inc | B185: S.US.EDR
A186: Edwards LifeSciences | B186: S.US.EW
A187: Electronic Arts | B187: S.US.EA
A188: Lilly (Eli) & Company | B188: S.US.LLY
A189: EMCOR Group | B189: S.US.EME
A190: Emerson Electric Co | B190: S.US.EMR
A191: Energen Corp | B191: S.US.EGN
A192: Energizer Holdings, Inc. | B192: S.US.ENR
A193: Enersys | B193: S.US.ENS
A194: Envision Healthcare Corporation | B194: S.US.EVHC
A195: EOG Resources | B195: S.US.EOG
A196: EPR Properties | B196: S.US.EPR
A197: EQT Corp | B197: S.US.EQT
A198: Equifax Inc | B198: S.US.EFX
A199: Equinix Inc | B199: S.US.EQIX
A200: Equity Residential Properties Trust | B200: S.US.EQR
... 364 more rows

Sheet IUSG (hidden)
B1: =IF(D1>=0,1,) -> 1 | C1: S.US.DDD | D1: =IFERROR(RTD("cqg.rtd", ,"ContractData",C1, "PerCentNetLastTrade",, "T")/100,"") -> 0.004115226337 | E1: 55 | F1: =IFERROR(E1,"") -> 55 | G1: =C1 -> S.US.DDD | H1: 1 | I1: =IFERROR(VLOOKUP(H1,$F$1:$G$564,2,FALSE),"") -> S.US.NWL | J1: =IFERROR(RTD("cqg.rtd", ,"ContractData",I1, "PerCentNetLastTrade",, "T")/100,"") -> 0.1364518215 | L1: =MIN(D1:D564) -> -0.06110735989 | M1: =VLOOKUP(L1,D1:G564,3,FALSE) -> 564 | N1: =VLOOKUP(M1,$H$1:$I$564,2,FALSE) -> S.US.CAR | O1: =IFERROR(RTD("cqg.rtd", ,"ContractData",N1, "PerCentNetLastTrade",, "T")/100,"") -> -0.06110735989 | Q1: ="https://finance.yahoo.com/quote/"&RIGHT(I1,(LEN(I1)-5)) -> https://finance.yahoo.com/quote/NWL | S1: =RTD("cqg.rtd", ,"ContractData",I1, "LongDescription",, "T") -> Newell Brands Inc. | V1: =N15 -> S.US.KMT | W1: =RTD("cqg.rtd", ,"ContractData",V1, "LongDescription",, "T") -> Kennametal Inc | Z1: =IFERROR(RTD("cqg.rtd", ,"ContractData",V1, "PerCentNetLastTrade",, "T")/100,"") -> -0.01894317049 | AA1: =Z1*-1 -> 0.01894317049 | AB1: ="https://finance.yahoo.com/quote/"&RIGHT(V1,(LEN(V1)-5)) -> https://finance.yahoo.com/quote/KMT
B2: =IF(D2>=0,1,) -> 0 | C2: S.US.MMM | D2: =IFERROR(RTD("cqg.rtd", ,"ContractData",C2, "PerCentNetLastTrade",, "T")/100,"") -> -0.003109327984 | E2: 272 | F2: =IFERROR(E2,"") -> 272 | G2: =C2 -> S.US.MMM | H2: =H1+1 -> 2 | I2: S.US.KATE | J2: =IFERROR(RTD("cqg.rtd", ,"ContractData",I2, "PerCentNetLastTrade",, "T")/100,"") -> 0.08190925162 | M2: =M1-1 -> 563 | N2: S.US.LOGM | O2: =IFERROR(RTD("cqg.rtd", ,"ContractData",N2, "PerCentNetLastTrade",, "T")/100,"") -> -0.03844563869 | Q2: ="https://finance.yahoo.com/quote/"&RIGHT(I2,(LEN(I2)-5)) -> https://finance.yahoo.com/quote/KATE | S2: =RTD("cqg.rtd", ,"ContractData",I2, "LongDescription",, "T") -> Kate Spade Company | V2: =N14 -> S.US.MTX | W2: =RTD("cqg.rtd", ,"ContractData",V2, "LongDescription",, "T") -> Minerals Technologies Inc | Z2: =IFERROR(RTD("cqg.rtd", ,"ContractData",V2, "PerCentNetLastTrade",, "T")/100,"") -> -0.0192926045 | AA2: =Z2*-1 -> 0.0192926045 | AB2: ="https://finance.yahoo.com/quote/"&RIGHT(V2,(LEN(V2)-5)) -> https://finance.yahoo.com/quote/MTX
B3: 0 | C3: S.US.AOS | D3: =IFERROR(RTD("cqg.rtd", ,"ContractData",C3, "PerCentNetLastTrade",, "T")/100,"") -> -0.005964214712 | E3: 381 | F3: 381 | G3: S.US.AOS | H3: =H2+1 -> 3 | I3: S.US.COH | J3: =IFERROR(RTD("cqg.rtd", ,"ContractData",I3, "PerCentNetLastTrade",, "T")/100,"") -> 0.05883731833 | M3: =M2-1 -> 562 | N3: S.US.MIK | O3: =IFERROR(RTD("cqg.rtd", ,"ContractData",N3, "PerCentNetLastTrade",, "T")/100,"") -> -0.0324300311 | Q3: https://finance.yahoo.com/quote/COH | S3: =RTD("cqg.rtd", ,"ContractData",I3, "LongDescription",, "T") -> COACH INC | V3: =N13 -> S.US.TFX | W3: =RTD("cqg.rtd", ,"ContractData",V3, "LongDescription",, "T") -> Teleflex Inc | Z3: =IFERROR(RTD("cqg.rtd", ,"ContractData",V3, "PerCentNetLastTrade",, "T")/100,"") -> -0.02011580313 | AA3: 0.02011580313 | AB3: https://finance.yahoo.com/quote/TFX
B4: 0 | C4: S.US.ABBV | D4: =IFERROR(RTD("cqg.rtd", ,"ContractData",C4, "PerCentNetLastTrade",, "T")/100,"") -> -0.00776235259 | E4: 423 | F4: 423 | G4: S.US.ABBV | H4: 4 | I4: S.US.VAR | J4: =IFERROR(RTD("cqg.rtd", ,"ContractData",I4, "PerCentNetLastTrade",, "T")/100,"") -> 0.0414631499 | M4: 561 | N4: S.US.CHTR | O4: =IFERROR(RTD("cqg.rtd", ,"ContractData",N4, "PerCentNetLastTrade",, "T")/100,"") -> -0.02882489993 | Q4: https://finance.yahoo.com/quote/VAR | S4: =RTD("cqg.rtd", ,"ContractData",I4, "LongDescription",, "T") -> Varian Medical Systems Inc | V4: =N12 -> S.US.GVA | W4: =RTD("cqg.rtd", ,"ContractData",V4, "LongDescription",, "T") -> Granite Constr Inc | Z4: =IFERROR(RTD("cqg.rtd", ,"ContractData",V4, "PerCentNetLastTrade",, "T")/100,"") -> -0.02031516993 | AA4: 0.02031516993 | AB4: https://finance.yahoo.com/quote/GVA
B5: 0 | C5: S.US.ABMD | D5: =IFERROR(RTD("cqg.rtd", ,"ContractData",C5, "PerCentNetLastTrade",, "T")/100,"") -> -0.01172667819 | E5: 490 | F5: 490 | G5: S.US.ABMD | H5: 5 | I5: S.US.URI | J5: =IFERROR(RTD("cqg.rtd", ,"ContractData",I5, "PerCentNetLastTrade",, "T")/100,"") -> 0.02432085169 | M5: 560 | N5: S.US.INCY | O5: =IFERROR(RTD("cqg.rtd", ,"ContractData",N5, "PerCentNetLastTrade",, "T")/100,"") -> -0.02802058655 | Q5: https://finance.yahoo.com/quote/URI | S5: =RTD("cqg.rtd", ,"ContractData",I5, "LongDescription",, "T") -> United Rentals Inc | V5: =N11 -> S.US.KIM | W5: =RTD("cqg.rtd", ,"ContractData",V5, "LongDescription",, "T") -> Kimco Realty Corp | Z5: =IFERROR(RTD("cqg.rtd", ,"ContractData",V5, "PerCentNetLastTrade",, "T")/100,"") -> -0.02156469408 | AA5: 0.02156469408 | AB5: https://finance.yahoo.com/quote/KIM
B6: 0 | C6: S.US.ACHC | D6: =IFERROR(RTD("cqg.rtd", ,"ContractData",C6, "PerCentNetLastTrade",, "T")/100,"") -> -0.01266948211 | E6: 499 | F6: 499 | G6: S.US.ACHC | H6: 6 | I6: S.US.TCBI | J6: =IFERROR(RTD("cqg.rtd", ,"ContractData",I6, "PerCentNetLastTrade",, "T")/100,"") -> 0.02023653088 | M6: 559 | N6: S.US.JWA | O6: =IFERROR(RTD("cqg.rtd", ,"ContractData",N6, "PerCentNetLastTrade",, "T")/100,"") -> -0.02790697674 | Q6: https://finance.yahoo.com/quote/TCBI | S6: =RTD("cqg.rtd", ,"ContractData",I6, "LongDescription",, "T") -> Texas Capital Bancshares Inc | V6: =N10 -> S.US.SKT | W6: =RTD("cqg.rtd", ,"ContractData",V6, "LongDescription",, "T") -> Tanger Factory Outlet Centers, Inc. | Z6: =IFERROR(RTD("cqg.rtd", ,"ContractData",V6, "PerCentNetLastTrade",, "T")/100,"") -> -0.02200488998 | AA6: 0.02200488998 | AB6: https://finance.yahoo.com/quote/SKT
B7: 0 | C7: S.US.ACN | D7: =IFERROR(RTD("cqg.rtd", ,"ContractData",C7, "PerCentNetLastTrade",, "T")/100,"") -> -0.004361421988 | E7: 331 | F7: 331 | G7: S.US.ACN | H7: 7 | I7: S.US.TRIP | J7: =IFERROR(RTD("cqg.rtd", ,"ContractData",I7, "PerCentNetLastTrade",, "T")/100,"") -> 0.01884340481 | M7: 558 | N7: S.US.WRI | O7: =IFERROR(RTD("cqg.rtd", ,"ContractData",N7, "PerCentNetLastTrade",, "T")/100,"") -> -0.02364352834 | Q7: https://finance.yahoo.com/quote/TRIP | S7: =RTD("cqg.rtd", ,"ContractData",I7, "LongDescription",, "T") -> TripAdvisor, Inc. | V7: =N9 -> S.US.TCO | W7: =RTD("cqg.rtd", ,"ContractData",V7, "LongDescription",, "T") -> Taubman Centers Inc | Z7: =IFERROR(RTD("cqg.rtd", ,"ContractData",V7, "PerCentNetLastTrade",, "T")/100,"") -> -0.02255270469 | AA7: 0.02255270469 | AB7: https://finance.yahoo.com/quote/TCO
B8: 0 | C8: S.US.ACIW | D8: =IFERROR(RTD("cqg.rtd", ,"ContractData",C8, "PerCentNetLastTrade",, "T")/100,"") -> -0.007973143097 | E8: 430 | F8: 430 | G8: S.US.ACIW | H8: 8 | I8: S.US.XLNX | J8: =IFERROR(RTD("cqg.rtd", ,"ContractData",I8, "PerCentNetLastTrade",, "T")/100,"") -> 0.01640637324 | M8: 557 | N8: S.US.SLM | O8: =IFERROR(RTD("cqg.rtd", ,"ContractData",N8, "PerCentNetLastTrade",, "T")/100,"") -> -0.02347024308 | Q8: https://finance.yahoo.com/quote/XLNX | S8: =RTD("cqg.rtd", ,"ContractData",I8, "LongDescription",, "T") -> Xilinx Inc | V8: =N8 -> S.US.SLM | W8: =RTD("cqg.rtd", ,"ContractData",V8, "LongDescription",, "T") -> SLM Corporation | Z8: =IFERROR(RTD("cqg.rtd", ,"ContractData",V8, "PerCentNetLastTrade",, "T")/100,"") -> -0.02347024308 | AA8: 0.02347024308 | AB8: https://finance.yahoo.com/quote/SLM
B9: 0 | C9: S.US.ATVI | D9: =IFERROR(RTD("cqg.rtd", ,"ContractData",C9, "PerCentNetLastTrade",, "T")/100,"") -> -0.007802340702 | E9: 427 | F9: 427 | G9: S.US.ATVI | H9: 9 | I9: S.US.LB | J9: =IFERROR(RTD("cqg.rtd", ,"ContractData",I9, "PerCentNetLastTrade",, "T")/100,"") -> 0.01585747847 | M9: 556 | N9: S.US.TCO | O9: =IFERROR(RTD("cqg.rtd", ,"ContractData",N9, "PerCentNetLastTrade",, "T")/100,"") -> -0.02255270469 | Q9: https://finance.yahoo.com/quote/LB | S9: =RTD("cqg.rtd", ,"ContractData",I9, "LongDescription",, "T") -> L Brands, Inc. | V9: =N7 -> S.US.WRI | W9: =RTD("cqg.rtd", ,"ContractData",V9, "LongDescription",, "T") -> Weingarten Realty Investors | Z9: =IFERROR(RTD("cqg.rtd", ,"ContractData",V9, "PerCentNetLastTrade",, "T")/100,"") -> -0.02364352834 | AA9: 0.02364352834 | AB9: https://finance.yahoo.com/quote/WRI
B10: 1 | C10: S.US.AYI | D10: =IFERROR(RTD("cqg.rtd", ,"ContractData",C10, "PerCentNetLastTrade",, "T")/100,"") -> 0.005777537797 | E10: 43 | F10: 43 | G10: S.US.AYI | H10: 10 | I10: S.US.MUR | J10: =IFERROR(RTD("cqg.rtd", ,"ContractData",I10, "PerCentNetLastTrade",, "T")/100,"") -> 0.0141329259 | M10: 555 | N10: S.US.SKT | O10: =IFERROR(RTD("cqg.rtd", ,"ContractData",N10, "PerCentNetLastTrade",, "T")/100,"") -> -0.02200488998 | Q10: https://finance.yahoo.com/quote/MUR | S10: =RTD("cqg.rtd", ,"ContractData",I10, "LongDescription",, "T") -> Murphy Oil Corp | V10: =N6 -> S.US.JWA | W10: =RTD("cqg.rtd", ,"ContractData",V10, "LongDescription",, "T") -> John Wiley/Sons Inc | Z10: =IFERROR(RTD("cqg.rtd", ,"ContractData",V10, "PerCentNetLastTrade",, "T")/100,"") -> -0.02790697674 | AA10: 0.02790697674 | AB10: https://finance.yahoo.com/quote/JWA
B11: 0 | C11: S.US.ACXM | D11: =IFERROR(RTD("cqg.rtd", ,"ContractData",C11, "PerCentNetLastTrade",, "T")/100,"") -> -0.006927606512 | E11: 403 | F11: 403 | G11: S.US.ACXM | H11: 11 | I11: S.US.CTSH | J11: =IFERROR(RTD("cqg.rtd", ,"ContractData",I11, "PerCentNetLastTrade",, "T")/100,"") -> 0.01376146789 | M11: 554 | N11: S.US.KIM | O11: =IFERROR(RTD("cqg.rtd", ,"ContractData",N11, "PerCentNetLastTrade",, "T")/100,"") -> -0.02156469408 | Q11: https://finance.yahoo.com/quote/CTSH | S11: =RTD("cqg.rtd", ,"ContractData",I11, "LongDescription",, "T") -> Cognizant Tech Solutions Corp | V11: =N5 -> S.US.INCY | W11: =RTD("cqg.rtd", ,"ContractData",V11, "LongDescription",, "T") -> Incyte Corporation | Z11: =IFERROR(RTD("cqg.rtd", ,"ContractData",V11, "PerCentNetLastTrade",, "T")/100,"") -> -0.02802058655 | AA11: 0.02802058655 | AB11: https://finance.yahoo.com/quote/INCY
B12: 0 | C12: S.US.ADBE | D12: =IFERROR(RTD("cqg.rtd", ,"ContractData",C12, "PerCentNetLastTrade",, "T")/100,"") -> -0.003188964699 | E12: 276 | F12: 276 | G12: S.US.ADBE | H12: 12 | I12: S.US.CSL | J12: =IFERROR(RTD("cqg.rtd", ,"ContractData",I12, "PerCentNetLastTrade",, "T")/100,"") -> 0.01361661033 | M12: 553 | N12: S.US.GVA | O12: =IFERROR(RTD("cqg.rtd", ,"ContractData",N12, "PerCentNetLastTrade",, "T")/100,"") -> -0.02031516993 | Q12: https://finance.yahoo.com/quote/CSL | S12: =RTD("cqg.rtd", ,"ContractData",I12, "LongDescription",, "T") -> Carlisle Cos Inc | V12: =N4 -> S.US.CHTR | W12: =RTD("cqg.rtd", ,"ContractData",V12, "LongDescription",, "T") -> Charter Communications, Inc. Class A | Z12: =IFERROR(RTD("cqg.rtd", ,"ContractData",V12, "PerCentNetLastTrade",, "T")/100,"") -> -0.02882489993 | AA12: 0.02882489993 | AB12: https://finance.yahoo.com/quote/CHTR
B13: 1 | C13: S.US.AAP | D13: =IFERROR(RTD("cqg.rtd", ,"ContractData",C13, "PerCentNetLastTrade",, "T")/100,"") -> 0.001517450683 | E13: 98 | F13: 98 | G13: S.US.AAP | H13: 13 | I13: S.US.GPOR | J13: =IFERROR(RTD("cqg.rtd", ,"ContractData",I13, "PerCentNetLastTrade",, "T")/100,"") -> 0.01338432122 | M13: 552 | N13: S.US.TFX | O13: =IFERROR(RTD("cqg.rtd", ,"ContractData",N13, "PerCentNetLastTrade",, "T")/100,"") -> -0.02011580313 | Q13: https://finance.yahoo.com/quote/GPOR | S13: =RTD("cqg.rtd", ,"ContractData",I13, "LongDescription",, "T") -> Gulfport Energy | V13: =N3 -> S.US.MIK | W13: =RTD("cqg.rtd", ,"ContractData",V13, "LongDescription",, "T") -> The Michaels Companies, Inc. | Z13: =IFERROR(RTD("cqg.rtd", ,"ContractData",V13, "PerCentNetLastTrade",, "T")/100,"") -> -0.0324300311 | AA13: 0.0324300311 | AB13: https://finance.yahoo.com/quote/MIK
B14: 0 | C14: S.US.AMD | D14: =IFERROR(RTD("cqg.rtd", ,"ContractData",C14, "PerCentNetLastTrade",, "T")/100,"") -> -0.0157016683 | E14: 536 | F14: 536 | G14: S.US.AMD | H14: 14 | I14: S.US.CHS | J14: =IFERROR(RTD("cqg.rtd", ,"ContractData",I14, "PerCentNetLastTrade",, "T")/100,"") -> 0.01316752012 | M14: 551 | N14: S.US.MTX | O14: =IFERROR(RTD("cqg.rtd", ,"ContractData",N14, "PerCentNetLastTrade",, "T")/100,"") -> -0.0192926045 | Q14: https://finance.yahoo.com/quote/CHS | S14: =RTD("cqg.rtd", ,"ContractData",I14, "LongDescription",, "T") -> Chicos FAS Inc | V14: =N2 -> S.US.LOGM | W14: =RTD("cqg.rtd", ,"ContractData",V14, "LongDescription",, "T") -> LogMein, Inc | Z14: =IFERROR(RTD("cqg.rtd", ,"ContractData",V14, "PerCentNetLastTrade",, "T")/100,"") -> -0.03844563869 | AA14: 0.03844563869 | AB14: https://finance.yahoo.com/quote/LOGM
B15: 1 | C15: S.US.AET | D15: =IFERROR(RTD("cqg.rtd", ,"ContractData",C15, "PerCentNetLastTrade",, "T")/100,"") -> 0.001846984443 | E15: 90 | F15: 90 | G15: S.US.AET | H15: 15 | I15: S.US.AAPL | J15: =IFERROR(RTD("cqg.rtd", ,"ContractData",I15, "PerCentNetLastTrade",, "T")/100,"") -> 0.01275510204 | M15: 550 | N15: S.US.KMT | O15: =IFERROR(RTD("cqg.rtd", ,"ContractData",N15, "PerCentNetLastTrade",, "T")/100,"") -> -0.01894317049 | Q15: https://finance.yahoo.com/quote/AAPL | S15: =RTD("cqg.rtd", ,"ContractData",I15, "LongDescription",, "T") -> Apple Inc | V15: =N1 -> S.US.CAR | W15: =RTD("cqg.rtd", ,"ContractData",V15, "LongDescription",, "T") -> AVIS Budget Group Inc | Z15: =IFERROR(RTD("cqg.rtd", ,"ContractData",V15, "PerCentNetLastTrade",, "T")/100,"") -> -0.06110735989 | AA15: 0.06110735989 | AB15: https://finance.yahoo.com/quote/CAR
B16: 0 | C16: S.US.A | D16: =IFERROR(RTD("cqg.rtd", ,"ContractData",C16, "PerCentNetLastTrade",, "T")/100,"") -> -0.002824858757 | E16: 262 | F16: 262 | G16: S.US.A | H16: 16 | I16: S.US.CFG
B17: 0 | C17: S.US.APD | D17: =IFERROR(RTD("cqg.rtd", ,"ContractData",C17, "PerCentNetLastTrade",, "T")/100,"") -> -0.004211384323 | E17: 327 | F17: 327 | G17: S.US.APD | H17: 17 | I17: S.US.K
B18: 0 | C18: S.US.AKAM | D18: =IFERROR(RTD("cqg.rtd", ,"ContractData",C18, "PerCentNetLastTrade",, "T")/100,"") -> -0.01668904661 | E18: 540 | F18: 540 | G18: S.US.AKAM | H18: 18 | I18: S.US.SLB
B19: 1 | C19: S.US.AKRX | D19: =IFERROR(RTD("cqg.rtd", ,"ContractData",C19, "PerCentNetLastTrade",, "T")/100,"") -> 0 | E19: 138 | F19: 138 | G19: S.US.AKRX | H19: 19 | I19: S.US.TSS
B20: 0 | C20: S.US.ALK | D20: =IFERROR(RTD("cqg.rtd", ,"ContractData",C20, "PerCentNetLastTrade",, "T")/100,"") -> -0.01055842328 | E20: 476 | F20: 476 | G20: S.US.ALK | H20: 20 | I20: S.US.REGN
B21: 0 | C21: S.US.ALB | D21: =IFERROR(RTD("cqg.rtd", ,"ContractData",C21, "PerCentNetLastTrade",, "T")/100,"") -> -0.006726661213 | E21: 395 | F21: 395 | G21: S.US.ALB | H21: 21 | I21: S.US.NUS
B22: 0 | C22: S.US.ALEX | D22: =IFERROR(RTD("cqg.rtd", ,"ContractData",C22, "PerCentNetLastTrade",, "T")/100,"") -> -0.009296781883 | E22: 453 | F22: 453 | G22: S.US.ALEX | H22: 22 | I22: S.US.PXD
B23: 0 | C23: S.US.ARE | D23: =IFERROR(RTD("cqg.rtd", ,"ContractData",C23, "PerCentNetLastTrade",, "T")/100,"") -> -0.0009579378211 | E23: 183 | F23: 183 | G23: S.US.ARE | H23: 23 | I23: S.US.MNST
B24: 1 | C24: S.US.ALXN | D24: =IFERROR(RTD("cqg.rtd", ,"ContractData",C24, "PerCentNetLastTrade",, "T")/100,"") -> 0.006210215805 | E24: 41 | F24: 41 | G24: S.US.ALXN | H24: 24 | I24: S.US.CHK
B25: 0 | C25: S.US.ALGN | D25: =IFERROR(RTD("cqg.rtd", ,"ContractData",C25, "PerCentNetLastTrade",, "T")/100,"") -> -0.007607041947 | E25: 418 | F25: 418 | G25: S.US.ALGN | H25: 25 | I25: S.US.AMZN
B26: 0 | C26: S.US.ALLE | D26: =IFERROR(RTD("cqg.rtd", ,"ContractData",C26, "PerCentNetLastTrade",, "T")/100,"") -> -0.0135483871 | E26: 510 | F26: 510 | G26: S.US.ALLE | H26: 26 | I26: S.US.QEP
B27: 0 | C27: S.US.ADS | D27: =IFERROR(RTD("cqg.rtd", ,"ContractData",C27, "PerCentNetLastTrade",, "T")/100,"") -> -0.005636228424 | E27: 371 | F27: 371 | G27: S.US.ADS | H27: 27 | I27: S.US.SEE
B28: 0 | C28: S.US.LNT | D28: =IFERROR(RTD("cqg.rtd", ,"ContractData",C28, "PerCentNetLastTrade",, "T")/100,"") -> -0.008487269096 | E28: 441 | F28: 441 | G28: S.US.LNT | H28: 28 | I28: S.US.EAT
B29: 0 | C29: S.US.GOOGL | D29: =IFERROR(RTD("cqg.rtd", ,"ContractData",C29, "PerCentNetLastTrade",, "T")/100,"") -> -0.0002209874984 | E29: 150 | F29: 150 | G29: S.US.GOOGL | H29: 29 | I29: S.US.SYY
B30: 0 | C30: S.US.GOOG | D30: =IFERROR(RTD("cqg.rtd", ,"ContractData",C30, "PerCentNetLastTrade",, "T")/100,"") -> -0.0007873760961 | E30: 174 | F30: 174 | G30: S.US.GOOG | H30: 30 | I30: S.US.NFG
B31: 0 | C31: S.US.MO | D31: =IFERROR(RTD("cqg.rtd", ,"ContractData",C31, "PerCentNetLastTrade",, "T")/100,"") -> -0.001269035533 | E31: 192 | F31: 192 | G31: S.US.MO | H31: 31 | I31: S.US.PII
B32: 1 | C32: S.US.AMZN | D32: =IFERROR(RTD("cqg.rtd", ,"ContractData",C32, "PerCentNetLastTrade",, "T")/100,"") -> 0.008949312209 | E32: 25 | F32: 25 | G32: S.US.AMZN | H32: 32 | I32: S.US.CPB
B33: 0 | C33: S.US.AMCX | D33: =IFERROR(RTD("cqg.rtd", ,"ContractData",C33, "PerCentNetLastTrade",, "T")/100,"") -> -0.01174586225 | E33: 491 | F33: 491 | G33: S.US.AMCX | H33: 33 | I33: S.US.APA
B34: 0 | C34: S.US.ACC | D34: =IFERROR(RTD("cqg.rtd", ,"ContractData",C34, "PerCentNetLastTrade",, "T")/100,"") -> -0.01324786325 | E34: 507 | F34: 507 | G34: S.US.ACC | H34: 34 | I34: S.US.AZO
B35: 0 | C35: S.US.AXP | D35: =IFERROR(RTD("cqg.rtd", ,"ContractData",C35, "PerCentNetLastTrade",, "T")/100,"") -> -0.0006384065373 | E35: 167 | F35: 167 | G35: S.US.AXP | H35: 35 | I35: S.US.NFX
B36: 0 | C36: S.US.AMT | D36: =IFERROR(RTD("cqg.rtd", ,"ContractData",C36, "PerCentNetLastTrade",, "T")/100,"") -> -0.004040718005 | E36: 313 | F36: 313 | G36: S.US.AMT | H36: 36 | I36: S.US.MMS
B37: 1 | C37: S.US.AWK | D37: =IFERROR(RTD("cqg.rtd", ,"ContractData",C37, "PerCentNetLastTrade",, "T")/100,"") -> 0.00156555773 | E37: 97 | F37: 97 | G37: S.US.AWK | H37: 37 | I37: S.US.CMA
B38: 0 | C38: S.US.AMP | D38: =IFERROR(RTD("cqg.rtd", ,"ContractData",C38, "PerCentNetLastTrade",, "T")/100,"") -> -0.003337990995 | E38: 281 | F38: 281 | G38: S.US.AMP | H38: 38 | I38: S.US.ULTA
B39: 0 | C39: S.US.AMGN | D39: =IFERROR(RTD("cqg.rtd", ,"ContractData",C39, "PerCentNetLastTrade",, "T")/100,"") -> -0.003845919053 | E39: 302 | F39: 302 | G39: S.US.AMGN | H39: 39 | I39: S.US.KORS
B40: 1 | C40: S.US.APH | D40: =IFERROR(RTD("cqg.rtd", ,"ContractData",C40, "PerCentNetLastTrade",, "T")/100,"") -> 0.001386385692 | E40: 101 | F40: 101 | G40: S.US.APH | H40: 40 | I40: S.US.MRK
B41: 0 | C41: S.US.APC | D41: =IFERROR(RTD("cqg.rtd", ,"ContractData",C41, "PerCentNetLastTrade",, "T")/100,"") -> -0.005324206123 | E41: 360 | F41: 360 | G41: S.US.APC | H41: 41 | I41: S.US.ALXN
B42: 0 | C42: S.US.ADI | D42: =IFERROR(RTD("cqg.rtd", ,"ContractData",C42, "PerCentNetLastTrade",, "T")/100,"") -> -0.004222192901 | E42: 328 | F42: 328 | G42: S.US.ADI | H42: 42 | I42: S.US.WMB
B43: 1 | C43: S.US.ANSS | D43: =IFERROR(RTD("cqg.rtd", ,"ContractData",C43, "PerCentNetLastTrade",, "T")/100,"") -> 0.002062706271 | E43: 87 | F43: 87 | G43: S.US.ANSS | H43: 43 | I43: S.US.AYI
B44: 1 | C44: S.US.AON | D44: =IFERROR(RTD("cqg.rtd", ,"ContractData",C44, "PerCentNetLastTrade",, "T")/100,"") -> 0.003762165699 | E44: 59 | F44: 59 | G44: S.US.AON | H44: 44 | I44: S.US.DRE
B45: 1 | C45: S.US.APA | D45: =IFERROR(RTD("cqg.rtd", ,"ContractData",C45, "PerCentNetLastTrade",, "T")/100,"") -> 0.007303712721 | E45: 33 | F45: 33 | G45: S.US.APA | H45: 45 | I45: S.US.EGN
B46: 0 | C46: S.US.AIV | D46: =IFERROR(RTD("cqg.rtd", ,"ContractData",C46, "PerCentNetLastTrade",, "T")/100,"") -> -0.01114649682 | E46: 487 | F46: 487 | G46: S.US.AIV | H46: 46 | I46: S.US.TPX
B47: 1 | C47: S.US.AAPL | D47: =IFERROR(RTD("cqg.rtd", ,"ContractData",C47, "PerCentNetLastTrade",, "T")/100,"") -> 0.01275510204 | E47: 15 | F47: 15 | G47: S.US.AAPL | H47: 47 | I47: S.US.MDP
B48: 0 | C48: S.US.AMAT | D48: =IFERROR(RTD("cqg.rtd", ,"ContractData",C48, "PerCentNetLastTrade",, "T")/100,"") -> -0.001912502988 | E48: 224 | F48: 224 | G48: S.US.AMAT | H48: 48 | I48: S.US.UNIT
B49: 1 | C49: S.US.ATR | D49: =IFERROR(RTD("cqg.rtd", ,"ContractData",C49, "PerCentNetLastTrade",, "T")/100,"") -> 0.00134293737 | E49: 104 | F49: 104 | G49: S.US.ATR | H49: 49 | I49: S.US.ORLY
B50: 0 | C50: S.US.WTR | D50: =IFERROR(RTD("cqg.rtd", ,"ContractData",C50, "PerCentNetLastTrade",, "T")/100,"") -> -0.004042288557 | E50: 314 | F50: 314 | G50: S.US.WTR | H50: 50 | I50: S.US.UA
B51: 1 | C51: S.US.ARRS | D51: =IFERROR(RTD("cqg.rtd", ,"ContractData",C51, "PerCentNetLastTrade",, "T")/100,"") -> 0.000723065799 | E51: 122 | F51: 122 | G51: S.US.ARRS | H51: 51 | I51: S.US.HOLX
B52: 1 | C52: S.US.AJG | D52: =IFERROR(RTD("cqg.rtd", ,"ContractData",C52, "PerCentNetLastTrade",, "T")/100,"") -> 0.0008975049363 | E52: 115 | F52: 115 | G52: S.US.AJG | H52: 52 | I52: S.US.LAMR
B53: 1 | C53: S.US.ADSK | D53: =IFERROR(RTD("cqg.rtd", ,"ContractData",C53, "PerCentNetLastTrade",, "T")/100,"") -> 0.001394251394 | E53: 100 | F53: 100 | G53: S.US.ADSK | H53: 53 | I53: S.US.DY
B54: 0 | C54: S.US.ADP | D54: =IFERROR(RTD("cqg.rtd", ,"ContractData",C54, "PerCentNetLastTrade",, "T")/100,"") -> -0.009366502165 | E54: 456 | F54: 456 | G54: S.US.ADP | H54: 54 | I54: S.US.OKE
B55: 1 | C55: S.US.AZO | D55: =IFERROR(RTD("cqg.rtd", ,"ContractData",C55, "PerCentNetLastTrade",, "T")/100,"") -> 0.007117437722 | E55: 34 | F55: 34 | G55: S.US.AZO | H55: 55 | I55: S.US.DDD
B56: 0 | C56: S.US.AVB | D56: =IFERROR(RTD("cqg.rtd", ,"ContractData",C56, "PerCentNetLastTrade",, "T")/100,"") -> -0.003994811933 | E56: 309 | F56: 309 | G56: S.US.AVB | H56: 56 | I56: S.US.CVLT
B57: 0 | C57: S.US.AVY | D57: =IFERROR(RTD("cqg.rtd", ,"ContractData",C57, "PerCentNetLastTrade",, "T")/100,"") -> -0.002732565047 | E57: 255 | F57: 255 | G57: S.US.AVY | H57: 57 | I57: S.US.BBY
B58: 0 | C58: S.US.CAR | D58: =IFERROR(RTD("cqg.rtd", ,"ContractData",C58, "PerCentNetLastTrade",, "T")/100,"") -> -0.06110735989 | E58: 564 | F58: 564 | G58: S.US.CAR | H58: 58 | I58: S.US.SM
B59: 1 | C59: S.US.BHI | D59: =IFERROR(RTD("cqg.rtd", ,"ContractData",C59, "PerCentNetLastTrade",, "T")/100,"") -> 0.002865329513 | E59: 73 | F59: 73 | G59: S.US.BHI | H59: 59 | I59: S.US.AON
B60: 0 | C60: S.US.BOH | D60: =IFERROR(RTD("cqg.rtd", ,"ContractData",C60, "PerCentNetLastTrade",, "T")/100,"") -> -0.003875499576 | E60: 303 | F60: 303 | G60: S.US.BOH | H60: 60 | I60: S.US.SCI
B61: 0 | C61: S.US.OZRK | D61: =IFERROR(RTD("cqg.rtd", ,"ContractData",C61, "PerCentNetLastTrade",, "T")/100,"") -> -0.0006212466349 | E61: 166 | F61: 166 | G61: S.US.OZRK | H61: 61 | I61: S.US.DVN
B62: 0 | C62: S.US.BDX | D62: =IFERROR(RTD("cqg.rtd", ,"ContractData",C62, "PerCentNetLastTrade",, "T")/100,"") -> -0.004045307443 | E62: 316 | F62: 316 | G62: S.US.BDX | H62: 62 | I62: S.US.HCA
B63: 0 | C63: S.US.BDC | D63: =IFERROR(RTD("cqg.rtd", ,"ContractData",C63, "PerCentNetLastTrade",, "T")/100,"") -> -0.009893048128 | E63: 465 | F63: 465 | G63: S.US.BDC | H63: 63 | I63: S.US.TUP
B64: 1 | C64: S.US.BBY | D64: =IFERROR(RTD("cqg.rtd", ,"ContractData",C64, "PerCentNetLastTrade",, "T")/100,"") -> 0.004068190624 | E64: 57 | F64: 57 | G64: S.US.BBY | H64: 64 | I64: S.US.GLW
B65: 0 | C65: S.US.BIOCA | D65: =IFERROR(RTD("cqg.rtd", ,"ContractData",C65, "PerCentNetLastTrade",, "T")/100,"") -> -0.01318113874 | E65: 506 | F65: 506 | G65: S.US.BIOCA | H65: 65 | I65: =IFERROR(VLOOKUP(H65,$F$1:$G$564,2,FALSE),"") -> S.US.XYL
B66: =IF(D66>=0,1,) -> 1 | C66: S.US.TECH | D66: =IFERROR(RTD("cqg.rtd", ,"ContractData",C66, "PerCentNetLastTrade",, "T")/100,"") -> 0.002887304881 | E66: 72 | F66: =IFERROR(E66,"") -> 72 | G66: =C66 -> S.US.TECH | H66: 66 | I66: S.US.EOG
B67: 1 | C67: S.US.BIIB | D67: =IFERROR(RTD("cqg.rtd", ,"ContractData",C67, "PerCentNetLastTrade",, "T")/100,"") -> 0.001220675186 | E67: 108 | F67: 108 | G67: S.US.BIIB | H67: =H66+1 -> 67 | I67: S.US.VSM
B68: 0 | C68: S.US.BIVV | D68: =IFERROR(RTD("cqg.rtd", ,"ContractData",C68, "PerCentNetLastTrade",, "T")/100,"") -> -0.00836001423 | E68: 434 | F68: 434 | G68: S.US.BIVV | H68: 68 | I68: S.US.NVR
B69: 0 | C69: S.US.BKH | D69: =IFERROR(RTD("cqg.rtd", ,"ContractData",C69, "PerCentNetLastTrade",, "T")/100,"") -> -0.003754512635 | E69: 297 | F69: 297 | G69: S.US.BKH | H69: 69 | I69: S.US.CAB
B70: 0 | C70: S.US.BLK | D70: =IFERROR(RTD("cqg.rtd", ,"ContractData",C70, "PerCentNetLastTrade",, "T")/100,"") -> -0.002058578278 | E70: 230 | F70: 230 | G70: S.US.BLK | H70: 70 | I70: S.US.SCHW
B71: 1 | C71: S.US.BA | D71: =IFERROR(RTD("cqg.rtd", ,"ContractData",C71, "PerCentNetLastTrade",, "T")/100,"") -> 0.001783687368 | E71: 92 | F71: 92 | G71: S.US.BA | H71: 71 | I71: S.US.LVLT
B72: 0 | C72: S.US.SAM | D72: =IFERROR(RTD("cqg.rtd", ,"ContractData",C72, "PerCentNetLastTrade",, "T")/100,"") -> -0.001708233686 | E72: 214 | F72: 214 | G72: S.US.SAM | H72: 72 | I72: S.US.TECH
B73: 0 | C73: S.US.BXP | D73: =IFERROR(RTD("cqg.rtd", ,"ContractData",C73, "PerCentNetLastTrade",, "T")/100,"") -> -0.00790960452 | E73: 429 | F73: 429 | G73: S.US.BXP | H73: 73 | I73: S.US.BHI
B74: 0 | C74: S.US.BSX | D74: =IFERROR(RTD("cqg.rtd", ,"ContractData",C74, "PerCentNetLastTrade",, "T")/100,"") -> -0.002263296869 | E74: 235 | F74: 235 | G74: S.US.BSX | H74: 74 | I74: S.US.HNI
B75: 1 | C75: S.US.EAT | D75: =IFERROR(RTD("cqg.rtd", ,"ContractData",C75, "PerCentNetLastTrade",, "T")/100,"") -> 0.008513575702 | E75: 28 | F75: 28 | G75: S.US.EAT | H75: 75 | I75: S.US.HD
B76: 0 | C76: S.US.BMY | D76: =IFERROR(RTD("cqg.rtd", ,"ContractData",C76, "PerCentNetLastTrade",, "T")/100,"") -> -0.002357207616 | E76: 238 | F76: 238 | G76: S.US.BMY | H76: 76 | I76: S.US.EBAY
B77: 0 | C77: S.US.AVGO | D77: =IFERROR(RTD("cqg.rtd", ,"ContractData",C77, "PerCentNetLastTrade",, "T")/100,"") -> -0.001324795761 | E77: 196 | F77: 196 | G77: S.US.AVGO | H77: 77 | I77: S.US.MHK
B78: 0 | C78: S.US.BR | D78: =IFERROR(RTD("cqg.rtd", ,"ContractData",C78, "PerCentNetLastTrade",, "T")/100,"") -> -0.007110724133 | E78: 407 | F78: 407 | G78: S.US.BR | H78: 78 | I78: S.US.TMO
B79: 1 | C79: S.US.BRCD | D79: =IFERROR(RTD("cqg.rtd", ,"ContractData",C79, "PerCentNetLastTrade",, "T")/100,"") -> 0.001591089897 | E79: 96 | F79: 96 | G79: S.US.BRCD | H79: 79 | I79: S.US.GIS
B80: 1 | C80: S.US.BRO | D80: =IFERROR(RTD("cqg.rtd", ,"ContractData",C80, "PerCentNetLastTrade",, "T")/100,"") -> 0 | E80: 139 | F80: 139 | G80: S.US.BRO | H80: 80 | I80: S.US.KEYS
B81: 0 | C81: S.US.BFB | D81: =IFERROR(RTD("cqg.rtd", ,"ContractData",C81, "PerCentNetLastTrade",, "T")/100,"") -> -0.005305039788 | E81: 359 | F81: 359 | G81: S.US.BFB | H81: 81 | I81: S.US.LMT
B82: 1 | C82: S.US.BWLD | D82: =IFERROR(RTD("cqg.rtd", ,"ContractData",C82, "PerCentNetLastTrade",, "T")/100,"") -> 0.0006236357967 | E82: 126 | F82: 126 | G82: S.US.BWLD | H82: 82 | I82: S.US.PRI
B83: 0 | C83: S.US.BCR | D83: =IFERROR(RTD("cqg.rtd", ,"ContractData",C83, "PerCentNetLastTrade",, "T")/100,"") -> -0.002824216848 | E83: 261 | F83: 261 | G83: S.US.BCR | H83: 83 | I83: S.US.HBI
B84: 1 | C84: S.US.CAB | D84: =IFERROR(RTD("cqg.rtd", ,"ContractData",C84, "PerCentNetLastTrade",, "T")/100,"") -> 0.003202846975 | E84: 69 | F84: 69 | G84: S.US.CAB | H84: 84 | I84: S.US.PWR
B85: 0 | C85: S.US.CABO | D85: =IFERROR(RTD("cqg.rtd", ,"ContractData",C85, "PerCentNetLastTrade",, "T")/100,"") -> -0.005902366864 | E85: 380 | F85: 380 | G85: S.US.CABO | H85: 85 | I85: S.US.FFIV
B86: 0 | C86: S.US.COG | D86: =IFERROR(RTD("cqg.rtd", ,"ContractData",C86, "PerCentNetLastTrade",, "T")/100,"") -> -0.01158460902 | E86: 489 | F86: 489 | G86: S.US.COG | H86: 86 | I86: S.US.HAL
B87: 0 | C87: S.US.CDNS | D87: =IFERROR(RTD("cqg.rtd", ,"ContractData",C87, "PerCentNetLastTrade",, "T")/100,"") -> -0.005447941889 | E87: 363 | F87: 363 | G87: S.US.CDNS | H87: 87 | I87: S.US.ANSS
B88: 0 | C88: S.US.CPT | D88: =IFERROR(RTD("cqg.rtd", ,"ContractData",C88, "PerCentNetLastTrade",, "T")/100,"") -> -0.003156872268 | E88: 275 | F88: 275 | G88: S.US.CPT | H88: 88 | I88: S.US.VSAT
B89: 1 | C89: S.US.CPB | D89: =IFERROR(RTD("cqg.rtd", ,"ContractData",C89, "PerCentNetLastTrade",, "T")/100,"") -> 0.007317073171 | E89: 32 | F89: 32 | G89: S.US.CPB | H89: 89 | I89: S.US.NBL
B90: 1 | C90: S.US.CSL | D90: =IFERROR(RTD("cqg.rtd", ,"ContractData",C90, "PerCentNetLastTrade",, "T")/100,"") -> 0.01361661033 | E90: 12 | F90: 12 | G90: S.US.CSL | H90: 90 | I90: S.US.AET
B91: 1 | C91: S.US.KMX | D91: =IFERROR(RTD("cqg.rtd", ,"ContractData",C91, "PerCentNetLastTrade",, "T")/100,"") -> 0.001674761347 | E91: 94 | F91: 94 | G91: S.US.KMX | H91: 91 | I91: S.US.XEC
B92: 0 | C92: S.US.CRI | D92: =IFERROR(RTD("cqg.rtd", ,"ContractData",C92, "PerCentNetLastTrade",, "T")/100,"") -> -0.004394897631 | E92: 332 | F92: 332 | G92: S.US.CRI | H92: 92 | I92: S.US.BA
B93: 0 | C93: S.US.CTLT | D93: =IFERROR(RTD("cqg.rtd", ,"ContractData",C93, "PerCentNetLastTrade",, "T")/100,"") -> -0.009763779528 | E93: 464 | F93: 464 | G93: S.US.CTLT | H93: 93 | I93: S.US.HII
B94: 0 | C94: S.US.CAT | D94: =IFERROR(RTD("cqg.rtd", ,"ContractData",C94, "PerCentNetLastTrade",, "T")/100,"") -> -0.00301083902 | E94: 267 | F94: 267 | G94: S.US.CAT | H94: 94 | I94: S.US.KMX
B95: 0 | C95: S.US.CBOE | D95: =IFERROR(RTD("cqg.rtd", ,"ContractData",C95, "PerCentNetLastTrade",, "T")/100,"") -> -0.009312320917 | E95: 454 | F95: 454 | G95: S.US.CBOE | H95: 95 | I95: S.US.MTD
B96: 0 | C96: S.US.CBG | D96: =IFERROR(RTD("cqg.rtd", ,"ContractData",C96, "PerCentNetLastTrade",, "T")/100,"") -> -0.01577372858 | E96: 538 | F96: 538 | G96: S.US.CBG | H96: 96 | I96: S.US.BRCD
B97: 0 | C97: S.US.CBS | D97: =IFERROR(RTD("cqg.rtd", ,"ContractData",C97, "PerCentNetLastTrade",, "T")/100,"") -> -0.01809815951 | E97: 546 | F97: 546 | G97: S.US.CBS | H97: 97 | I97: S.US.AWK
B98: 0 | C98: S.US.CDK | D98: =IFERROR(RTD("cqg.rtd", ,"ContractData",C98, "PerCentNetLastTrade",, "T")/100,"") -> -0.006141910457 | E98: 384 | F98: 384 | G98: S.US.CDK | H98: 98 | I98: S.US.AAP
B99: 0 | C99: S.US.CELG | D99: =IFERROR(RTD("cqg.rtd", ,"ContractData",C99, "PerCentNetLastTrade",, "T")/100,"") -> -0.0143779103 | E99: 519 | F99: 519 | G99: S.US.CELG | H99: 99 | I99: S.US.GWW
B100: 0 | C100: S.US.CNP | D100: =IFERROR(RTD("cqg.rtd", ,"ContractData",C100, "PerCentNetLastTrade",, "T")/100,"") -> -0.008912655971 | E100: 446 | F100: 446 | G100: S.US.CNP | H100: 100 | I100: S.US.ADSK
B101: 0 | C101: S.US.CERN | D101: =IFERROR(RTD("cqg.rtd", ,"ContractData",C101, "PerCentNetLastTrade",, "T")/100,"") -> -0.001849283403 | E101: 220 | F101: 220 | G101: S.US.CERN | H101: 101 | I101: S.US.APH
B102: 0 | C102: S.US.CHRW | D102: =IFERROR(RTD("cqg.rtd", ,"ContractData",C102, "PerCentNetLastTrade",, "T")/100,"") -> -0.0118609407 | E102: 493 | F102: 493 | G102: S.US.CHRW | H102: 102 | I102: S.US.TR
B103: 0 | C103: S.US.CRL | D103: =IFERROR(RTD("cqg.rtd", ,"ContractData",C103, "PerCentNetLastTrade",, "T")/100,"") -> -0.00033116238 | E103: 156 | F103: 156 | G103: S.US.CRL | H103: 103 | I103: S.US.MBFI
B104: 1 | C104: S.US.SCHW | D104: =IFERROR(RTD("cqg.rtd", ,"ContractData",C104, "PerCentNetLastTrade",, "T")/100,"") -> 0.002990281585 | E104: 70 | F104: 70 | G104: S.US.SCHW | H104: 104 | I104: S.US.ATR
B105: 0 | C105: S.US.CHTR | D105: =IFERROR(RTD("cqg.rtd", ,"ContractData",C105, "PerCentNetLastTrade",, "T")/100,"") -> -0.02882489993 | E105: 561 | F105: 561 | G105: S.US.CHTR | H105: 105 | I105: S.US.DGX
B106: 1 | C106: S.US.CAKE | D106: =IFERROR(RTD("cqg.rtd", ,"ContractData",C106, "PerCentNetLastTrade",, "T")/100,"") -> 0.0006342159505 | E106: 125 | F106: 125 | G106: S.US.CAKE | H106: 106 | I106: S.US.VRTX
B107: 1 | C107: S.US.CHFC | D107: =IFERROR(RTD("cqg.rtd", ,"ContractData",C107, "PerCentNetLastTrade",, "T")/100,"") -> 0.0006095083299 | E107: 128 | F107: 128 | G107: S.US.CHFC | H107: 107 | I107: S.US.GPN
B108: 0 | C108: S.US.CC | D108: =IFERROR(RTD("cqg.rtd", ,"ContractData",C108, "PerCentNetLastTrade",, "T")/100,"") -> -0.01818622696 | E108: 547 | F108: 547 | G108: S.US.CC | H108: 108 | I108: S.US.BIIB
B109: 1 | C109: S.US.CHK | D109: =IFERROR(RTD("cqg.rtd", ,"ContractData",C109, "PerCentNetLastTrade",, "T")/100,"") -> 0.009157509158 | E109: 24 | F109: 24 | G109: S.US.CHK | H109: 109 | I109: S.US.NTRS
B110: 1 | C110: S.US.CHS | D110: =IFERROR(RTD("cqg.rtd", ,"ContractData",C110, "PerCentNetLastTrade",, "T")/100,"") -> 0.01316752012 | E110: 14 | F110: 14 | G110: S.US.CHS | H110: 110 | I110: S.US.PFE
B111: 0 | C111: S.US.CMG | D111: =IFERROR(RTD("cqg.rtd", ,"ContractData",C111, "PerCentNetLastTrade",, "T")/100,"") -> -0.005869976857 | E111: 378 | F111: 378 | G111: S.US.CMG | H111: 111 | I111: S.US.ZBH
B112: 0 | C112: S.US.CHD | D112: =IFERROR(RTD("cqg.rtd", ,"ContractData",C112, "PerCentNetLastTrade",, "T")/100,"") -> -0.00630169358 | E112: 388 | F112: 388 | G112: S.US.CHD | H112: 112 | I112: S.US.UAA
B113: 0 | C113: S.US.CHDN | D113: =IFERROR(RTD("cqg.rtd", ,"ContractData",C113, "PerCentNetLastTrade",, "T")/100,"") -> -0.003999522445 | E113: 310 | F113: 310 | G113: S.US.CHDN | H113: 113 | I113: S.US.GEO
B114: 1 | C114: S.US.XEC | D114: =IFERROR(RTD("cqg.rtd", ,"ContractData",C114, "PerCentNetLastTrade",, "T")/100,"") -> 0.00182876143 | E114: 91 | F114: 91 | G114: S.US.XEC | H114: 114 | I114: S.US.NKE
B115: 0 | C115: S.US.CINF | D115: =IFERROR(RTD("cqg.rtd", ,"ContractData",C115, "PerCentNetLastTrade",, "T")/100,"") -> -0.005506141465 | E115: 365 | F115: 365 | G115: S.US.CINF | H115: 115 | I115: S.US.AJG
B116: 0 | C116: S.US.CNK | D116: =IFERROR(RTD("cqg.rtd", ,"ContractData",C116, "PerCentNetLastTrade",, "T")/100,"") -> -0.003243744208 | E116: 277 | F116: 277 | G116: S.US.CNK | H116: 116 | I116: S.US.CMP
B117: 0 | C117: S.US.CTAS | D117: =IFERROR(RTD("cqg.rtd", ,"ContractData",C117, "PerCentNetLastTrade",, "T")/100,"") -> -0.01300918774 | E117: 504 | F117: 504 | G117: S.US.CTAS | H117: 117 | I117: S.US.MANH
B118: 0 | C118: S.US.CRUS | D118: =IFERROR(RTD("cqg.rtd", ,"ContractData",C118, "PerCentNetLastTrade",, "T")/100,"") -> -0.002197457228 | E118: 233 | F118: 233 | G118: S.US.CRUS | H118: 118 | I118: S.US.URBN
B119: 1 | C119: S.US.CFG | D119: =IFERROR(RTD("cqg.rtd", ,"ContractData",C119, "PerCentNetLastTrade",, "T")/100,"") -> 0.01109007303 | E119: 16 | F119: 16 | G119: S.US.CFG | H119: 119 | I119: S.US.RTN
B120: 0 | C120: S.US.CTXS | D120: =IFERROR(RTD("cqg.rtd", ,"ContractData",C120, "PerCentNetLastTrade",, "T")/100,"") -> -0.005829903978 | E120: 377 | F120: 377 | G120: S.US.CTXS | H120: 120 | I120: S.US.UMBF
B121: 0 | C121: S.US.CLX | D121: =IFERROR(RTD("cqg.rtd", ,"ContractData",C121, "PerCentNetLastTrade",, "T")/100,"") -> -0.005493265106 | E121: 364 | F121: 364 | G121: S.US.CLX | H121: 121 | I121: S.US.FB
B122: 0 | C122: S.US.CME | D122: =IFERROR(RTD("cqg.rtd", ,"ContractData",C122, "PerCentNetLastTrade",, "T")/100,"") -> -0.003031323678 | E122: 269 | F122: 269 | G122: S.US.CME | H122: 122 | I122: S.US.ARRS
B123: 1 | C123: S.US.COH | D123: =IFERROR(RTD("cqg.rtd", ,"ContractData",C123, "PerCentNetLastTrade",, "T")/100,"") -> 0.05883731833 | E123: 3 | F123: 3 | G123: S.US.COH | H123: 123 | I123: S.US.CBSH
B124: 0 | C124: S.US.KO | D124: =IFERROR(RTD("cqg.rtd", ,"ContractData",C124, "PerCentNetLastTrade",, "T")/100,"") -> -0.00297550927 | E124: 266 | F124: 266 | G124: S.US.KO | H124: 124 | I124: S.US.NEU
B125: 0 | C125: S.US.CGNX | D125: =IFERROR(RTD("cqg.rtd", ,"ContractData",C125, "PerCentNetLastTrade",, "T")/100,"") -> -0.003666666667 | E125: 291 | F125: 291 | G125: S.US.CGNX | H125: 125 | I125: S.US.CAKE
B126: 1 | C126: S.US.CTSH | D126: =IFERROR(RTD("cqg.rtd", ,"ContractData",C126, "PerCentNetLastTrade",, "T")/100,"") -> 0.01376146789 | E126: 11 | F126: 11 | G126: S.US.CTSH | H126: 126 | I126: S.US.BWLD
B127: 0 | C127: S.US.COHR | D127: =IFERROR(RTD("cqg.rtd", ,"ContractData",C127, "PerCentNetLastTrade",, "T")/100,"") -> -0.007594599396 | E127: 417 | F127: 417 | G127: S.US.COHR | H127: 127 | I127: S.US.DLTR
B128: 0 | C128: S.US.CL | D128: =IFERROR(RTD("cqg.rtd", ,"ContractData",C128, "PerCentNetLastTrade",, "T")/100,"") -> -0.0008355382259 | E128: 178 | F128: 178 | G128: S.US.CL | H128: 128 | I128: S.US.CHFC
B129: 0 | C129: S.US.CMCSA | D129: =IFERROR(RTD("cqg.rtd", ,"ContractData",C129, "PerCentNetLastTrade",, "T")/100,"") -> -0.001538067162 | E129: 204 | F129: 204 | G129: S.US.CMCSA | H129: 129 | I129: =IFERROR(VLOOKUP(H129,$F$1:$G$564,2,FALSE),"") -> S.US.MCHP
B130: =IF(D130>=0,1,) -> 1 | C130: S.US.CMA | D130: =IFERROR(RTD("cqg.rtd", ,"ContractData",C130, "PerCentNetLastTrade",, "T")/100,"") -> 0.006703910615 | E130: 37 | F130: =IFERROR(E130,"") -> 37 | G130: =C130 -> S.US.CMA | H130: 130 | I130: S.US.PCLN
B131: 1 | C131: S.US.CBSH | D131: =IFERROR(RTD("cqg.rtd", ,"ContractData",C131, "PerCentNetLastTrade",, "T")/100,"") -> 0.0007147962831 | E131: 123 | F131: 123 | G131: S.US.CBSH | H131: =H130+1 -> 131 | I131: S.US.ROP
B132: 1 | C132: S.US.CVLT | D132: =IFERROR(RTD("cqg.rtd", ,"ContractData",C132, "PerCentNetLastTrade",, "T")/100,"") -> 0.004074402126 | E132: 56 | F132: 56 | G132: S.US.CVLT | H132: 132 | I132: S.US.TRMK
B133: 1 | C133: S.US.CMP | D133: =IFERROR(RTD("cqg.rtd", ,"ContractData",C133, "PerCentNetLastTrade",, "T")/100,"") -> 0.0008862629247 | E133: 116 | F133: 116 | G133: S.US.CMP | H133: 133 | I133: S.US.EW
B134: 0 | C134: S.US.CXO | D134: =IFERROR(RTD("cqg.rtd", ,"ContractData",C134, "PerCentNetLastTrade",, "T")/100,"") -> -0.005016593347 | E134: 352 | F134: 352 | G134: S.US.CXO | H134: 134 | I134: S.US.USD
B135: 0 | C135: S.US.STZ | D135: =IFERROR(RTD("cqg.rtd", ,"ContractData",C135, "PerCentNetLastTrade",, "T")/100,"") -> -0.003697271862 | E135: 292 | F135: 292 | G135: S.US.STZ | H135: 135 | I135: S.US.OMC
B136: 0 | C136: S.US.CVG | D136: =IFERROR(RTD("cqg.rtd", ,"ContractData",C136, "PerCentNetLastTrade",, "T")/100,"") -> -0.0008722197994 | E136: 181 | F136: 181 | G136: S.US.CVG | H136: 136 | I136: S.US.FAST
B137: 0 | C137: S.US.COO | D137: =IFERROR(RTD("cqg.rtd", ,"ContractData",C137, "PerCentNetLastTrade",, "T")/100,"") -> -9.722424773e-05 | E137: 146 | F137: 146 | G137: S.US.COO | H137: 137 | I137: S.US.POST
B138: 0 | C138: S.US.CPRT | D138: =IFERROR(RTD("cqg.rtd", ,"ContractData",C138, "PerCentNetLastTrade",, "T")/100,"") -> -0.002610114192 | E138: 251 | F138: 251 | G138: S.US.CPRT | H138: 138 | I138: S.US.AKRX
B139: 0 | C139: S.US.CLGX | D139: =IFERROR(RTD("cqg.rtd", ,"ContractData",C139, "PerCentNetLastTrade",, "T")/100,"") -> -0.01073512252 | E139: 480 | F139: 480 | G139: S.US.CLGX | H139: 139 | I139: S.US.BRO
B140: 1 | C140: S.US.GLW | D140: =IFERROR(RTD("cqg.rtd", ,"ContractData",C140, "PerCentNetLastTrade",, "T")/100,"") -> 0.003459010723 | E140: 64 | F140: 64 | G140: S.US.GLW | H140: 140 | I140: S.US.GGG
B141: 0 | C141: S.US.OFC | D141: =IFERROR(RTD("cqg.rtd", ,"ContractData",C141, "PerCentNetLastTrade",, "T")/100,"") -> -0.003612281758 | E141: 289 | F141: 289 | G141: S.US.OFC | H141: 141 | I141: S.US.LOW
B142: 0 | C142: S.US.COTY | D142: =IFERROR(RTD("cqg.rtd", ,"ContractData",C142, "PerCentNetLastTrade",, "T")/100,"") -> -0.006087437742 | E142: 382 | F142: 382 | G142: S.US.COTY | H142: 142 | I142: S.US.MAS
B143: 0 | C143: S.US.CBRL | D143: =IFERROR(RTD("cqg.rtd", ,"ContractData",C143, "PerCentNetLastTrade",, "T")/100,"") -> -0.003290676417 | E143: 279 | F143: 279 | G143: S.US.CBRL | H143: 143 | I143: S.US.TER
B144: 0 | C144: S.US.CR | D144: =IFERROR(RTD("cqg.rtd", ,"ContractData",C144, "PerCentNetLastTrade",, "T")/100,"") -> -0.004011533158 | E144: 312 | F144: 312 | G144: S.US.CR | H144: 144 | I144: S.US.WU
B145: 0 | C145: S.US.CCI | D145: =IFERROR(RTD("cqg.rtd", ,"ContractData",C145, "PerCentNetLastTrade",, "T")/100,"") -> -0.004587155963 | E145: 338 | F145: 338 | G145: S.US.CCI | H145: 145 | I145: S.US.NEE
B146: 0 | C146: S.US.CSRA | D146: =IFERROR(RTD("cqg.rtd", ,"ContractData",C146, "PerCentNetLastTrade",, "T")/100,"") -> -0.002024974688 | E146: 228 | F146: 228 | G146: S.US.CSRA | H146: 146 | I146: S.US.COO
B147: 0 | C147: S.US.CSX | D147: =IFERROR(RTD("cqg.rtd", ,"ContractData",C147, "PerCentNetLastTrade",, "T")/100,"") -> -0.0007619047619 | E147: 172 | F147: 172 | G147: S.US.CSX | H147: 147 | I147: S.US.CFR
B148: 0 | C148: S.US.CFR | D148: =IFERROR(RTD("cqg.rtd", ,"ContractData",C148, "PerCentNetLastTrade",, "T")/100,"") -> -0.0001082837033 | E148: 147 | F148: 147 | G148: S.US.CFR | H148: 148 | I148: S.US.WWD
B149: 0 | C149: S.US.CMI | D149: =IFERROR(RTD("cqg.rtd", ,"ContractData",C149, "PerCentNetLastTrade",, "T")/100,"") -> -0.004695137638 | E149: 342 | F149: 342 | G149: S.US.CMI | H149: 149 | I149: S.US.FTV
B150: 0 | C150: S.US.CW | D150: =IFERROR(RTD("cqg.rtd", ,"ContractData",C150, "PerCentNetLastTrade",, "T")/100,"") -> -0.01281330786 | E150: 503 | F150: 503 | G150: S.US.CW | H150: 150 | I150: S.US.GOOGL
B151: 0 | C151: S.US.CY | D151: =IFERROR(RTD("cqg.rtd", ,"ContractData",C151, "PerCentNetLastTrade",, "T")/100,"") -> -0.01486988848 | E151: 527 | F151: 527 | G151: S.US.CY | H151: 151 | I151: S.US.UNH
B152: 0 | C152: S.US.CONE | D152: =IFERROR(RTD("cqg.rtd", ,"ContractData",C152, "PerCentNetLastTrade",, "T")/100,"") -> -0.004915346805 | E152: 351 | F152: 351 | G152: S.US.CONE | H152: 152 | I152: S.US.ECL
B153: 0 | C153: S.US.DHR | D153: =IFERROR(RTD("cqg.rtd", ,"ContractData",C153, "PerCentNetLastTrade",, "T")/100,"") -> -0.001669449082 | E153: 212 | F153: 212 | G153: S.US.DHR | H153: 153 | I153: S.US.HRC
B154: 0 | C154: S.US.DRI | D154: =IFERROR(RTD("cqg.rtd", ,"ContractData",C154, "PerCentNetLastTrade",, "T")/100,"") -> -0.001488606435 | E154: 201 | F154: 201 | G154: S.US.DRI | H154: 154 | I154: S.US.SBNY
B155: 0 | C155: S.US.DCT | D155: =IFERROR(RTD("cqg.rtd", ,"ContractData",C155, "PerCentNetLastTrade",, "T")/100,"") -> -0.00252378179 | E155: 249 | F155: 249 | G155: S.US.DCT | H155: 155 | I155: S.US.MKC
B156: 0 | C156: S.US.DECK | D156: =IFERROR(RTD("cqg.rtd", ,"ContractData",C156, "PerCentNetLastTrade",, "T")/100,"") -> -0.003786631544 | E156: 299 | F156: 299 | G156: S.US.DECK | H156: 156 | I156: S.US.CRL
B157: 0 | C157: S.US.DE | D157: =IFERROR(RTD("cqg.rtd", ,"ContractData",C157, "PerCentNetLastTrade",, "T")/100,"") -> -0.004420475643 | E157: 334 | F157: 334 | G157: S.US.DE | H157: 157 | I157: S.US.VAL
B158: 0 | C158: S.US.DLX | D158: =IFERROR(RTD("cqg.rtd", ,"ContractData",C158, "PerCentNetLastTrade",, "T")/100,"") -> -0.009483960948 | E158: 460 | F158: 460 | G158: S.US.DLX | H158: 158 | I158: S.US.USB
B159: 1 | C159: S.US.DVN | D159: =IFERROR(RTD("cqg.rtd", ,"ContractData",C159, "PerCentNetLastTrade",, "T")/100,"") -> 0.003682272488 | E159: 61 | F159: 61 | G159: S.US.DVN | H159: 159 | I159: S.US.UAL
B160: 0 | C160: S.US.DKS | D160: =IFERROR(RTD("cqg.rtd", ,"ContractData",C160, "PerCentNetLastTrade",, "T")/100,"") -> -0.003718199609 | E160: 294 | F160: 294 | G160: S.US.DKS | H160: 160 | I160: S.US.IDTI
B161: 0 | C161: S.US.DLR | D161: =IFERROR(RTD("cqg.rtd", ,"ContractData",C161, "PerCentNetLastTrade",, "T")/100,"") -> -0.006414199104 | E161: 391 | F161: 391 | G161: S.US.DLR | H161: 161 | I161: S.US.DFS
B162: 0 | C162: S.US.DFS | D162: =IFERROR(RTD("cqg.rtd", ,"ContractData",C162, "PerCentNetLastTrade",, "T")/100,"") -> -0.0004975124378 | E162: 161 | F162: 161 | G162: S.US.DFS | H162: 162 | I162: S.US.DEI
B163: 0 | C163: S.US.DISCA | D163: =IFERROR(RTD("cqg.rtd", ,"ContractData",C163, "PerCentNetLastTrade",, "T")/100,"") -> -0.00738279808 | E163: 412 | F163: 412 | G163: S.US.DISCA | H163: 163 | I163: S.US.FLIR
B164: 0 | C164: S.US.DISCK | D164: =IFERROR(RTD("cqg.rtd", ,"ContractData",C164, "PerCentNetLastTrade",, "T")/100,"") -> -0.00566893424 | E164: 373 | F164: 373 | G164: S.US.DISCK | H164: 164 | I164: S.US.MJN
B165: 0 | C165: S.US.DISH | D165: =IFERROR(RTD("cqg.rtd", ,"ContractData",C165, "PerCentNetLastTrade",, "T")/100,"") -> -0.003409090909 | E165: 282 | F165: 282 | G165: S.US.DISH | H165: 165 | I165: S.US.PNRA
B166: 0 | C166: S.US.DG | D166: =IFERROR(RTD("cqg.rtd", ,"ContractData",C166, "PerCentNetLastTrade",, "T")/100,"") -> -0.001494159196 | E166: 202 | F166: 202 | G166: S.US.DG | H166: 166 | I166: S.US.OZRK
B167: 1 | C167: S.US.DLTR | D167: =IFERROR(RTD("cqg.rtd", ,"ContractData",C167, "PerCentNetLastTrade",, "T")/100,"") -> 0.0006097560976 | E167: 127 | F167: 127 | G167: S.US.DLTR | H167: 167 | I167: S.US.AXP
B168: 0 | C168: S.US.D | D168: =IFERROR(RTD("cqg.rtd", ,"ContractData",C168, "PerCentNetLastTrade",, "T")/100,"") -> -0.001789594785 | E168: 218 | F168: 218 | G168: S.US.D | H168: 168 | I168: S.US.JNPR
B169: 0 | C169: S.US.DPZ | D169: =IFERROR(RTD("cqg.rtd", ,"ContractData",C169, "PerCentNetLastTrade",, "T")/100,"") -> -0.001657000829 | E169: 211 | F169: 211 | G169: S.US.DPZ | H169: 169 | I169: S.US.MCD
B170: 0 | C170: S.US.DCI | D170: =IFERROR(RTD("cqg.rtd", ,"ContractData",C170, "PerCentNetLastTrade",, "T")/100,"") -> -0.001698874496 | E170: 213 | F170: 213 | G170: S.US.DCI | H170: 170 | I170: S.US.FR
B171: 0 | C171: S.US.DEI | D171: =IFERROR(RTD("cqg.rtd", ,"ContractData",C171, "PerCentNetLastTrade",, "T")/100,"") -> -0.0005198856252 | E171: 162 | F171: 162 | G171: S.US.DEI | H171: 171 | I171: S.US.NOC
B172: 0 | C172: S.US.DPS | D172: =IFERROR(RTD("cqg.rtd", ,"ContractData",C172, "PerCentNetLastTrade",, "T")/100,"") -> -0.00460475825 | E172: 339 | F172: 339 | G172: S.US.DPS | H172: 172 | I172: S.US.CSX
B173: 1 | C173: S.US.DRE | D173: =IFERROR(RTD("cqg.rtd", ,"ContractData",C173, "PerCentNetLastTrade",, "T")/100,"") -> 0.005382131324 | E173: 44 | F173: 44 | G173: S.US.DRE | H173: 173 | I173: S.US.ROST
B174: 0 | C174: S.US.DNB | D174: =IFERROR(RTD("cqg.rtd", ,"ContractData",C174, "PerCentNetLastTrade",, "T")/100,"") -> -0.007775912344 | E174: 425 | F174: 425 | G174: S.US.DNB | H174: 174 | I174: S.US.GOOG
B175: 0 | C175: S.US.DNKN | D175: =IFERROR(RTD("cqg.rtd", ,"ContractData",C175, "PerCentNetLastTrade",, "T")/100,"") -> -0.01858138288 | E175: 548 | F175: 548 | G175: S.US.DNKN | H175: 175 | I175: S.US.PM
B176: 0 | C176: S.US.DXC | D176: =IFERROR(RTD("cqg.rtd", ,"ContractData",C176, "PerCentNetLastTrade",, "T")/100,"") -> -0.008802143131 | E176: 445 | F176: 445 | G176: S.US.DXC | H176: 176 | I176: S.US.JNJ
B177: 1 | C177: S.US.DY | D177: =IFERROR(RTD("cqg.rtd", ,"ContractData",C177, "PerCentNetLastTrade",, "T")/100,"") -> 0.004172848665 | E177: 53 | F177: 53 | G177: S.US.DY | H177: 177 | I177: S.US.SNA
B178: 0 | C178: S.US.DD | D178: =IFERROR(RTD("cqg.rtd", ,"ContractData",C178, "PerCentNetLastTrade",, "T")/100,"") -> -0.01059896475 | E178: 477 | F178: 477 | G178: S.US.DD | H178: 178 | I178: S.US.CL
B179: 0 | C179: S.US.ETFC | D179: =IFERROR(RTD("cqg.rtd", ,"ContractData",C179, "PerCentNetLastTrade",, "T")/100,"") -> -0.001955307263 | E179: 225 | F179: 225 | G179: S.US.ETFC | H179: 179 | I179: S.US.WPX
B180: 0 | C180: S.US.EXP | D180: =IFERROR(RTD("cqg.rtd", ,"ContractData",C180, "PerCentNetLastTrade",, "T")/100,"") -> -0.008191747573 | E180: 432 | F180: 432 | G180: S.US.EXP | H180: 180 | I180: S.US.NATI
B181: 0 | C181: S.US.EWBC | D181: =IFERROR(RTD("cqg.rtd", ,"ContractData",C181, "PerCentNetLastTrade",, "T")/100,"") -> -0.004847396768 | E181: 347 | F181: 347 | G181: S.US.EWBC | H181: 181 | I181: S.US.CVG
B182: 0 | C182: S.US.EV | D182: =IFERROR(RTD("cqg.rtd", ,"ContractData",C182, "PerCentNetLastTrade",, "T")/100,"") -> -0.006423491627 | E182: 392 | F182: 392 | G182: S.US.EV | H182: 182 | I182: S.US.SPN
B183: 1 | C183: S.US.EBAY | D183: =IFERROR(RTD("cqg.rtd", ,"ContractData",C183, "PerCentNetLastTrade",, "T")/100,"") -> 0.002686567164 | E183: 76 | F183: 76 | G183: S.US.EBAY | H183: 183 | I183: S.US.ARE
B184: 0 | C184: S.US.ECL | D184: =IFERROR(RTD("cqg.rtd", ,"ContractData",C184, "PerCentNetLastTrade",, "T")/100,"") -> -0.0002372104056 | E184: 152 | F184: 152 | G184: S.US.ECL | H184: 184 | I184: S.US.WOOF
B185: 0 | C185: S.US.EDR | D185: =IFERROR(RTD("cqg.rtd", ,"ContractData",C185, "PerCentNetLastTrade",, "T")/100,"") -> -0.01730466702 | E185: 544 | F185: 544 | G185: S.US.EDR | H185: 185 | I185: S.US.FISV
B186: 1 | C186: S.US.EW | D186: =IFERROR(RTD("cqg.rtd", ,"ContractData",C186, "PerCentNetLastTrade",, "T")/100,"") -> 0.0002712967987 | E186: 133 | F186: 133 | G186: S.US.EW | H186: 186 | I186: S.US.KEY
B187: 0 | C187: S.US.EA | D187: =IFERROR(RTD("cqg.rtd", ,"ContractData",C187, "PerCentNetLastTrade",, "T")/100,"") -> -0.002820137873 | E187: 260 | F187: 260 | G187: S.US.EA | H187: 187 | I187: S.US.RAI
B188: 0 | C188: S.US.LLY | D188: =IFERROR(RTD("cqg.rtd", ,"ContractData",C188, "PerCentNetLastTrade",, "T")/100,"") -> -0.01454369167 | E188: 522 | F188: 522 | G188: S.US.LLY | H188: 188 | I188: S.US.TIF
B189: 0 | C189: S.US.EME | D189: =IFERROR(RTD("cqg.rtd", ,"ContractData",C189, "PerCentNetLastTrade",, "T")/100,"") -> -0.01373792271 | E189: 511 | F189: 511 | G189: S.US.EME | H189: 189 | I189: S.US.MON
B190: 0 | C190: S.US.EMR | D190: =IFERROR(RTD("cqg.rtd", ,"ContractData",C190, "PerCentNetLastTrade",, "T")/100,"") -> -0.004411265694 | E190: 333 | F190: 333 | G190: S.US.EMR | H190: 190 | I190: S.US.UBSI
B191: 1 | C191: S.US.EGN | D191: =IFERROR(RTD("cqg.rtd", ,"ContractData",C191, "PerCentNetLastTrade",, "T")/100,"") -> 0.005335365854 | E191: 45 | F191: 45 | G191: S.US.EGN | H191: 191 | I191: S.US.RSG
B192: 0 | C192: S.US.ENR | D192: =IFERROR(RTD("cqg.rtd", ,"ContractData",C192, "PerCentNetLastTrade",, "T")/100,"") -> -0.003460837887 | E192: 283 | F192: 283 | G192: S.US.ENR | H192: 192 | I192: S.US.MO
B193: 0 | C193: S.US.ENS | D193: =IFERROR(RTD("cqg.rtd", ,"ContractData",C193, "PerCentNetLastTrade",, "T")/100,"") -> -0.004168651739 | E193: 325 | F193: 325 | G193: S.US.ENS | H193: 193 | I193: =IFERROR(VLOOKUP(H193,$F$1:$G$564,2,FALSE),"") -> S.US.IPGP
B194: =IF(D194>=0,1,) -> 0 | C194: S.US.EVHC | D194: =IFERROR(RTD("cqg.rtd", ,"ContractData",C194, "PerCentNetLastTrade",, "T")/100,"") -> -0.01876629018 | E194: 549 | F194: =IFERROR(E194,"") -> 549 | G194: =C194 -> S.US.EVHC | H194: 194 | I194: S.US.QCOM
B195: 1 | C195: S.US.EOG | D195: =IFERROR(RTD("cqg.rtd", ,"ContractData",C195, "PerCentNetLastTrade",, "T")/100,"") -> 0.003411091549 | E195: 66 | F195: 66 | G195: S.US.EOG | H195: =H194+1 -> 195 | I195: S.US.HUM
B196: 0 | C196: S.US.EPR | D196: =IFERROR(RTD("cqg.rtd", ,"ContractData",C196, "PerCentNetLastTrade",, "T")/100,"") -> -0.00354408846 | E196: 288 | F196: 288 | G196: S.US.EPR | H196: 196 | I196: S.US.AVGO
B197: 0 | C197: S.US.EQT | D197: =IFERROR(RTD("cqg.rtd", ,"ContractData",C197, "PerCentNetLastTrade",, "T")/100,"") -> -0.009103400893 | E197: 449 | F197: 449 | G197: S.US.EQT | H197: 197 | I197: S.US.WAT
B198: 0 | C198: S.US.EFX | D198: =IFERROR(RTD("cqg.rtd", ,"ContractData",C198, "PerCentNetLastTrade",, "T")/100,"") -> -0.005547150782 | E198: 368 | F198: 368 | G198: S.US.EFX | H198: 198 | I198: S.US.PG
B199: 0 | C199: S.US.EQIX | D199: =IFERROR(RTD("cqg.rtd", ,"ContractData",C199, "PerCentNetLastTrade",, "T")/100,"") -> -0.003143695015 | E199: 274 | F199: 274 | G199: S.US.EQIX | H199: 199 | I199: S.US.LRCX
B200: 0 | C200: S.US.EQR | D200: =IFERROR(RTD("cqg.rtd", ,"ContractData",C200, "PerCentNetLastTrade",, "T")/100,"") -> -0.007634753397 | E200: 419 | F200: 419 | G200: S.US.EQR | H200: 200 | I200: S.US.WAFD
... 390 more rows
